{"text_format":"1","workbook":"xlsx","n_sheets":8,"sheets":["GSA IC Worksheet","Corrections PY","PY","CY","BY","BY+1","SUM","blank"],"not_rendered":{"charts":0,"images":1,"macros":1,"external_links":0,"defined_names":7,"comments":7,"pivot_tables":0},"unopened":[],"bounds":{"document_bytes":16777216,"sheet_cells":100000,"rows_first":2000,"rows_last":500,"rows_between":2000,"halvings":0,"cell_chars":16384,"cell_head_chars":4096},"cells_cut":0,"cells_raw":0,"read":"whole","date_system":"1900"}

{"sheet":"GSA IC Worksheet","index":0,"n_rows":35,"n_cols":8,"rows_kept":35,"cut":false,"hidden":false,"merged":[[34,0,34,7],[0,0,0,1],[15,6,15,7],[26,0,33,7],[1,0,1,1],[2,0,2,1],[20,0,20,1],[15,2,15,5],[22,2,22,5],[23,0,23,1],[24,0,24,1]]}
[null,null,"PY ","CY","BY","BY+1","RSF"]
["RSF",null,{"$f":"SUM(IF(A1=blank!$A$2:$A$436,blank!$C$2:$C$436,\"\"))","v":0},null,null,{"$f":"E2","v":0}]
["Rent Estimate Base",null,{"$f":"SUM(IF(A1=blank!$A$2:$A$436,blank!$F$2:$F$436,\"\"))","v":0},null,null,{"$f":"E3*(1+SUM!Q15)","v":0}]
["Owned","PY ",null,null,null,{"$f":"(E4)*(1+SUM!$Q$15)","v":0}]
[null,"CY",null,null,null,{"$f":"(E5)*(1+SUM!$Q$15)","v":0}]
[null,"BY",null,null,null,{"$f":"(E6)*(1+SUM!$Q$15)","v":0}]
[null,"BY+1",null,null,null,{"$f":"(E7)*(1+SUM!$Q$15)","v":0}]
[null,null,{"$f":"SUM(C4:C7)","v":0},{"$f":"SUM(D4:D7)","v":0},{"$f":"SUM(E4:E7)","v":0},{"$f":"SUM(F4:F7)","v":0}]
["Leased"]
[null,"PY ",null,null,null,{"$f":"(E10)*(1+SUM!$Q$15)","v":0}]
[null,"CY",null,null,null,{"$f":"(E11)*(1+SUM!$Q$15)","v":0}]
[null,"BY",null,null,null,{"$f":"(E12)*(1+SUM!$Q$15)","v":0}]
[null,"BY+1",null,null,null,{"$f":"(E13)*(1+SUM!$Q$15)","v":0}]
[null,null,{"$f":"SUM(C10:C13)","v":0},{"$f":"SUM(D10:D13)","v":0},{"$f":"SUM(E10:E13)","v":0},{"$f":"SUM(F10:F13)","v":0}]
[]
[null,null,"Summary of Inventory Change in Dollars",null,null,null,"Sum of IC Change in RSF "]
["Combined","PY ",{"$f":"C4+C10","v":0},{"$f":"D4+D10","v":0},{"$f":"E4+E10","v":0},{"$f":"(E17)*(1+SUM!Q15)","v":0},{"$f":"G4+G10","v":0},"PY "]
["Owned &","CY",null,{"$f":"D5+D11","v":0},{"$f":"E5+E11","v":0},{"$f":"(E18)*(1+SUM!Q15)","v":0},{"$f":"G5+G11","v":0},"CY"]
["Leased","BY",null,null,{"$f":"E6+E12","v":0},{"$f":"(E19)*(1+SUM!Q15)","v":0},{"$f":"G6+G12","v":0},"BY"]
[null,"BY+1",null,null,null,{"$f":"F7+F13","v":0},{"$f":"G7+G13","v":0},"BY+1"]
[null,null,{"$f":"C17","v":0},{"$f":"SUM(D17:D18)","v":0},{"$f":"SUM(E17:E19)","v":0},{"$f":"SUM(F17:F20)","v":0}]
[]
[null,null,"Projected Agency Budget"]
["SF",null,{"$f":"C2+G4+G10","v":0},{"$f":"D2+G4+G5+G10+G11","v":0},{"$f":"E2+G4+G5+G6+G10+G11+G12","v":0},{"$f":"F2+G17+G18+G19+G20","v":0}]
["Rent Amount",null,{"$f":"C14+C8+C3","v":0},{"$f":"D14+D8+D3","v":0},{"$f":"E14+E8+E3","v":0},{"$f":"F21+F3","v":0}]
[]
["NOTE:  The GSA Rent Estimate calculations, the GSA Anticipated Inventory Changes file and the modified Exhibit 54 template are provided to assist you in completing your Space Budget Justification report.  However, the user of this information is ultimately responsible for the accuracy of their Agency Budget Request.  Therefore, we strongly recommend that you thoroughly review all of the data in these files and to make all necessary adjustments for any errors or omissions on our part that may have occurred in the compilation of this data."]
[]
[]
[]
[]
[]
[]
[]
["Some cells have been locked to avoid accidental overwriting of formulas."]

{"sheet":"Corrections PY","index":1,"n_rows":30,"n_cols":24,"rows_kept":30,"cut":false,"hidden":false,"merged":[[29,0,29,7],[2,3,3,3],[2,4,3,4],[2,6,3,6],[2,5,3,5],[2,19,3,19],[2,17,3,17],[1,23,3,23],[2,7,3,7],[2,15,3,15],[2,14,3,14],[2,13,3,13],[2,12,3,12],[1,22,3,22],[2,11,3,11],[2,10,3,10],[2,9,3,9],[2,8,3,8],[0,2,0,8],[0,15,0,19],[0,12,0,14],[1,15,1,19],[0,9,0,11],[1,9,1,11],[1,12,1,14],[1,2,1,8]]}
["1. AGENCY IDENTIFICATION",null,"ASSIGNMENT INFORMATION",null,null,null,null,null,null,"GSA BILLING INFORMATION",null,null,"AGENCY INFORMATION",null,null,"AGENCY REVISION TO GSA ANNUAL RENT",null,null,null,null,null,null,null,"Annual Amount"]
["Agency Name: >>>>",null,null,null,null,null,null,null,null,"Actual based on Billing History",null,null,"Restated (minus disputed amounts)",null,null,"Annual Increase/(Decrease) to GSA Annual Rent",null,null,null,null,null,null,"Monthly Amount of Change","PY Corr Carryover Amt to CY (Includes CY CPI factor)"]
["Bureau Name: >>>>",null,null,"OA Effective Date","GSA Region #","Real Property ID","Building Name","City","State",null,"Rentable SF","Annual Rent",null,"Rentable SF","Annual Rent",null,"Rentable","Annual Rent Change",null,"Explanation of Changes"]
["GSA Bureau Code: >>>>",null,"OA #  ",null,null,null,null,null,null,null,null,null,null,null,null,null,"SF Change",null,"# of Months"]
["II.  GSA RENT BILL (Annual Rental Cost)",null,null,null,null,null,null,null,null,null,{"$f":"'GSA IC Worksheet'!C2","v":0},{"$f":"'GSA IC Worksheet'!C3","v":0}]
["Resolved/Unresolved Chargebacks",null,null,null,null,null,null,null,null,null,null,null,null,null,null,null,{"$f":"SUM(Q9:Q26)","v":0},{"$f":"SUM(R9:R26)","v":0},null,null,null,null,null,{"$f":"+X27","v":0}]
[]
["III.  AGENCY ADJUSTMENTS TO THE BILL"]
["Based on PY",null,null,null,null,null,null,null,null,null,null,null,null,null,null,null,{"$f":"N9-K9","v":0},{"$f":"O9-L9","v":0},null,null,null,null,{"$f":"IF(R9=0,0,R9/S9)","v":0},{"$f":"+W9*12","v":0}]
["Resolved or Unresolved disputes.",null,null,null,null,null,null,null,null,null,null,null,null,null,null,null,0,0,null,null,null,null,{"$f":"IF(R10=0,0,R10/S10)","v":0},{"$f":"+W10*12","v":0}]
[null,null,null,null,null,null,null,null,null,null,null,null,null,null,null,null,0,0,null,null,null,null,0,0]
[null,null,null,null,null,null,null,null,null,null,null,null,null,null,null,null,0,0,null,null,null,null,0,0]
[null,null,null,null,null,null,null,null,null,null,null,null,null,null,null,null,0,0,null,null,null,null,0,0]
[null,null,null,null,null,null,null,null,null,null,null,null,null,null,null,null,0,0,null,null,null,null,0,0]
[null,null,null,null,null,null,null,null,null,null,null,null,null,null,null,null,0,0,null,null,null,null,0,0]
[null,null,null,null,null,null,null,null,null,null,null,null,null,null,null,null,0,0,null,null,null,null,0,0]
[null,null,null,null,null,null,null,null,null,null,null,null,null,null,null,null,0,0,null,null,null,null,0,0]
[null,null,null,null,null,null,null,null,null,null,null,null,null,null,null,null,0,0,null,null,null,null,0,0]
[null,null,null,null,null,null,null,null,null,null,null,null,null,null,null,null,0,0,null,null,null,null,0,0]
[null,null,null,null,null,null,null,null,null,null,null,null,null,null,null,null,0,0,null,null,null,null,0,0]
[null,null,null,null,null,null,null,null,null,null,null,null,null,null,null,null,0,0,null,null,null,null,0,0]
[null,null,null,null,null,null,null,null,null,null,null,null,null,null,null,null,0,0,null,null,null,null,0,0]
[null,null,null,null,null,null,null,null,null,null,null,null,null,null,null,null,0,0,null,null,null,null,0,0]
[null,null,null,null,null,null,null,null,null,null,null,null,null,null,null,null,0,0,null,null,null,null,0,0]
[null,null,null,null,null,null,null,null,null,null,null,null,null,null,null,null,0,0,null,null,null,null,0,0]
[null,null,null,null,null,null,null,null,null,null,null,null,null,null,null,null,0,0,null,null,null,null,0,0]
["Subtotal:",null,null,null,null,null,null,null,null,{"$f":"SUM(J9:J26)","v":0},0,0,0,0,0,0,0,0,null,null,null,null,{"$f":"SUM(W9:W26)","v":0},{"$f":"SUM(X9:X26)","v":0}]
[]
[]
["NOTE:  The GSA Rent Estimate calculations, the GSA Anticipated Inventory Changes file and the modified Exhibit 54 template are provided to assist you in completing your Space Budget Justification report.  However, the user of this information is ultimately responsible for the accuracy of their Agency Budget Request.  Therefore, we strongly recommend that you thoroughly review all of the data in these files and to make all necessary adjustments for any errors or omissions on our part that may have occurred in the compilation of this data."]

{"sheet":"PY","index":2,"n_rows":46,"n_cols":26,"rows_kept":46,"cut":false,"hidden":false,"merged":[[45,0,45,7],[1,7,1,11],[9,0,9,1],[0,16,0,19],[1,12,1,15],[0,12,0,15],[0,0,0,1],[0,7,0,11],[0,2,0,6],[1,25,3,25],[1,23,3,23],[1,24,3,24],[1,22,3,22],[0,20,3,20],[1,21,3,21]]}
["I.  AGENCY IDENTIFICATION",null,"ASSIGNMENT INFORMATION",null,null,null,null,"GSA BILLING INFORMATION",null,null,null,null,"AGENCY INFORMATION",null,null,null,"AGENCY REVISION TO GSA ANNUAL RENT",null,null,null,"# Months of Change",null,"Annual Amount"]
["Agency Name:",{"$f":"'Corrections PY'!B2","v":0},null,null,null,null,null,"Actual based on Billing History",null,null,null,null,"Restated Annual Billing Information",null,null,null,null,null,"GSA Rent",null,null,"Monthly Amount of Change","PY Carryover Amount to CY (Includes CY CPI factor)","# Months of Change"," GSAMonthly Rent Amount"," Change in Monthly Amount"]
["Bureau Name:",{"$f":"'Corrections PY'!B3","v":0},"GSA","Real",null,null,null,null,"Effective",null,null,"Pro-rated Annual Rent ","Effective",null,null,"Agency's ",null,"Rentable","- Chargebacks"]
["GSA Bureau Code:",{"$f":"'Corrections PY'!B4","v":0},"Region No","Property ID","Building Name","City","State","OA #","Date of Change",null,"Rentable SF","+ PY Impact of Anticipated IC's","Date of Change",null,"Rentable** SF","annual rent calculation",null,"SF Change","+ Inventory Changes","Explanation of Change"]
["II.  GSA RENT BILL (Annual Rental Cost)",null,null,null,null,null,null,null,null,null,{"$f":"'Corrections PY'!K5","v":0},{"$f":"'Corrections PY'!L5","v":0},"2023-10-01",null,null,null,null,{"$f":"+K5","v":0},{"$f":"+L5","v":0}]
["Resolved/Unresolved Chargebacks",null,null,null,null,null,null,null,null,null,null,null,null,null,null,null,null,{"$f":"+'Corrections PY'!Q6","v":0},{"$f":"'Corrections PY'!R6","v":0},null,null,null,{"$f":"'Corrections PY'!X6*(1+(SUM!K15))","v":0}]
["Anticipated Inventory Changes",null,null,null,null,null,null,null,null,null,{"$f":"'GSA IC Worksheet'!G17","v":0},{"$f":"'GSA IC Worksheet'!C17","v":0},null,null,null,null,null,{"$f":"K7 + SUM(R12:R42)","v":0},{"$f":"L7 + SUM(S12:S42)","v":0},null,null,null,{"$f":"W43*(1+SUM!$K$15)","v":0}]
["Adjusted Annual Rent PY",null,null,null,null,null,null,null,null,null,{"$f":"+K5+K7","v":0},{"$f":"+L5+L7","v":0},null,null,null,null,null,{"$f":"+R5+R6+R7","v":0},{"$f":"+S5+S6+S7","v":0}]
["Revised PY Agency Budget"]
["III.  PLANNED CHANGES IN INVENTORY"]
["From 09/16/23 to 9/15/24"]
[null,null,null,null,null,null,null,null,null,null,null,null,null,null,null,{"$f":"IF(M12=\"\",0,IF(M12>DATEVALUE(\"09/15/2024\"),0,\"Enter value you prorated here\"))","v":0},null,{"$f":"O12-K12","v":0},{"$f":"P12-L12","v":0},null,{"$f":"(IF(M12,IF(M12-$M$5>365,0,INT((365+$M$5-M12+(365/24))/(365/12))),0))","v":0},{"$f":"IF(P12=0,0,IF(S12<0,(P12/U12),(P12/U12)))","v":0},{"$f":"+Z12*12","v":0},{"$f":"(IF(I12,IF(I12-$M$5>365,0,INT((365+$M$5-I12+(365/24))/(365/12))),0))","v":0},{"$f":"IF(X12=0,0,L12/X12)","v":0},{"$f":"IF(M12>DATEVALUE(\"09/15/24\"),0,V12-Y12)","v":0}]
[null,null,null,null,null,null,null,null,null,null,null,null,null,null,null,{"$f":"IF(M13=\"\",0,IF(M13>DATEVALUE(\"09/15/2024\"),0,\"Enter value you prorated here\"))","v":0},null,{"$f":"O13-K13","v":0},0,null,0,{"$f":"IF(P13=0,0,IF(S13<0,(P13/U13),(P13/U13)))","v":0},{"$f":"+Z13*12","v":0},0,{"$f":"IF(X13=0,0,L13/X13)","v":0},{"$f":"IF(M13>DATEVALUE(\"09/15/24\"),0,V13-Y13)","v":0}]
[null,null,null,null,null,null,null,null,null,null,null,null,null,null,null,0,null,0,0,null,0,0,0,0,0,0]
[null,null,null,null,null,null,null,null,null,null,null,null,null,null,null,0,null,0,0,null,0,0,0,0,0,0]
[null,null,null,null,null,null,null,null,null,null,null,null,null,null,null,0,null,0,0,null,0,0,0,0,0,0]
[null,null,null,null,null,null,null,null,null,null,null,null,null,null,null,0,null,0,0,null,0,0,0,0,0,0]
[null,null,null,null,null,null,null,null,null,null,null,null,null,null,null,0,null,0,0,null,0,0,0,0,0,0]
[null,null,null,null,null,null,null,null,null,null,null,null,null,null,null,0,null,0,0,null,0,0,0,0,0,0]
[null,null,null,null,null,null,null,null,null,null,null,null,null,null,null,0,null,0,0,null,0,0,0,0,0,0]
[null,null,null,null,null,null,null,null,null,null,null,null,null,null,null,0,null,0,0,null,0,0,0,0,0,0]
[null,null,null,null,null,null,null,null,null,null,null,null,null,null,null,0,null,0,0,null,0,0,0,0,0,0]
[null,null,null,null,null,null,null,null,null,null,null,null,null,null,null,0,null,0,0,null,0,0,0,0,0,0]
[null,null,null,null,null,null,null,null,null,null,null,null,null,null,null,0,null,0,0,null,0,0,0,0,0,0]
[null,null,null,null,null,null,null,null,null,null,null,null,null,null,null,0,null,0,0,null,0,0,0,0,0,0]
[null,null,null,null,null,null,null,null,null,null,null,null,null,null,null,0,null,0,0,null,0,0,0,0,0,0]
[null,null,null,null,null,null,null,null,null,null,null,null,null,null,null,0,null,0,0,null,0,0,0,0,0,0]
[null,null,null,null,null,null,null,null,null,null,null,null,null,null,null,0,null,0,0,null,0,0,0,0,0,0]
[null,null,null,null,null,null,null,null,null,null,null,null,null,null,null,0,null,0,0,null,0,0,0,0,0,0]
[null,null,null,null,null,null,null,null,null,null,null,null,null,null,null,0,null,0,0,null,0,0,0,0,0,0]
[null,null,null,null,null,null,null,null,null,null,null,null,null,null,null,0,null,0,0,null,0,0,0,0,0,0]
[null,null,null,null,null,null,null,null,null,null,null,null,null,null,null,0,null,0,0,null,0,0,0,0,0,0]
[null,null,null,null,null,null,null,null,null,null,null,null,null,null,null,0,null,0,0,null,0,0,0,0,0,0]
[null,null,null,null,null,null,null,null,null,null,null,null,null,null,null,0,null,0,0,null,0,0,0,0,0,0]
[null,null,null,null,null,null,null,null,null,null,null,null,null,null,null,0,null,0,0,null,0,0,0,0,0,0]
[null,null,null,null,null,null,null,null,null,null,null,null,null,null,null,0,null,0,0,null,0,0,0,0,0,0]
[null,null,null,null,null,null,null,null,null,null,null,null,null,null,null,0,null,0,0,null,0,0,0,0,0,0]
[null,null,null,null,null,null,null,null,null,null,null,null,null,null,null,0,null,0,0,null,0,0,0,0,0,0]
[null,null,null,null,null,null,null,null,null,null,null,null,null,null,null,0,null,0,0,null,0,0,0,0,0,0]
[null,null,null,null,null,null,null,null,null,null,null,null,null,null,null,0,null,0,0,null,0,0,0,0,0,0]
[null,null,null,null,null,null,null,null,null,null,null,null,null,null,null,0,null,0,0,null,0,0,0,0,0,0]
[null,null,null,null,null,null,null,null,null,null,null,null,null,null,null,0,null,0,0,null,0,0,0,0,0,0]
["Subtotal:",null,null,null,null,null,null,null,null,null,{"$f":"SUM(K12:K42)","v":0},{"$f":"SUM(L12:L42)","v":0},null,{"$f":"SUM(N12:N42)","v":0},{"$f":"SUM(O12:O42)","v":0},{"$f":"SUM(P12:P42)","v":0},null,{"$f":"SUM(R12:R42)","v":0},{"$f":"SUM(S12:S42)","v":0},null,null,{"$f":"SUM(V12:V42)","v":0},{"$f":"SUM(W12:W42)","v":0},null,{"$f":"SUM(Y12:Y42)","v":0},{"$f":"SUM(Z12:Z42)","v":0}]
[]
[]
["NOTE:  The GSA Rent Estimate calculations, the GSA Anticipated Inventory Changes file and the modified Exhibit 54 template are provided to assist you in completing your Space Budget Justification report.  However, the user of this information is ultimately responsible for the accuracy of their Agency Budget Request.  Therefore, we strongly recommend that you thoroughly review all of the data in these files and to make all necessary adjustments for any errors or omissions on our part that may have occurred in the compilation of this data."]

{"sheet":"CY","index":3,"n_rows":70,"n_cols":26,"rows_kept":70,"cut":false,"hidden":false,"merged":[[69,0,69,7],[1,7,1,11],[1,24,3,24],[1,20,3,20],[1,12,1,15],[0,0,0,1],[0,7,0,11],[0,2,0,6],[1,25,3,25],[1,23,3,23],[1,22,3,22],[1,21,3,21],[0,22,0,25],[0,12,0,15],[0,16,0,19]]}
["I.  AGENCY IDENTIFICATION",null,"ASSIGNMENT INFORMATION",null,null,null,null,"GSA EXPECTED ANNUAL RENT",null,null,null,null,"AGENCY INVENTORY CHANGE INFORMATION",null,null,null,"AGENCY BUDGET REQUEST",null,null,null,null,null,"Annual Amount Calculation"]
["Agency Name:",{"$f":"'Corrections PY'!B2","v":0},null,null,null,null,null,"Rent Estimate plus Anticipated Inventory Changes",null,null,null,null,"Agency calculation of Inventory Change Impact",null,null,null,null,null,"GSA Rent",null,"# Months of Change"," Agency Monthly Rent Amount","PY & CY Carryover Amount to BY (includes BY CPI factor)","# Months of Change"," GSAMonthly Rent Amount"," Change in Monthly Amount"]
["Bureau Name:",{"$f":"'Corrections PY'!B3","v":0},"GSA","Real","Building",null,null,"OA","Effective Date",null,"Rentable ","Rent Estimate",null,null,null,null,null,null," Estimate"]
["GSA Bureau Code:",{"$f":"'Corrections PY'!B4","v":0},"Region No","Property ID","Name","City","State","No","Date of Change",null,"SF","+ CY impact of Anticipated IC's","Effective    Date of Change",null," Rentable SF","Agency's calculation of IC Impact",null,"Rentable SF Change","- Chargebacks + Inventory Changes ","Explanation of Change"]
["II.  GSA CY BUDGET ESTIMATE (as the base)",null,null,null,null,null,null,null,null,null,{"$f":"'GSA IC Worksheet'!D2","v":0},{"$f":"'GSA IC Worksheet'!D3","v":0},"2024-10-01",null,null,null,null,{"$f":"+K5","v":0},{"$f":"+L5","v":0}]
["Chargebacks Corrections PY x OMB CPI ",null,null,null,null,null,null,null,null,null,null,null,null,null,null,null,null,{"$f":"+'Corrections PY'!Q6","v":0},{"$f":"'Corrections PY'!W27*12*(1+SUM!K15)","v":0},null,null,null,{"$f":"S6*(1+(SUM!N15))","v":0}]
["Anticipated Inventory Changes PY",null,null,null,null,null,null,null,null,null,{"$f":"'GSA IC Worksheet'!G17","v":0},{"$f":"'GSA IC Worksheet'!D17","v":0},null,null,null,null,null,{"$f":"K7+PY!R43","v":0},{"$f":"'GSA IC Worksheet'!D17+PY!W7","v":0},null,null,null,{"$f":"PY!W7*(1+SUM!$N$15)","v":0}]
["Anticipated Inventory Changes CY",null,null,null,null,null,null,null,null,null,{"$f":"'GSA IC Worksheet'!G18","v":0},{"$f":"'GSA IC Worksheet'!D18","v":0},null,null,null,null,null,{"$f":"K8+(R47+R67)","v":0},{"$f":"L8+S47+S67","v":0},null,null,null,{"$f":"(W47+W67)*(1+(SUM!N15))","v":0}]
["Total Budget Request CY",null,null,null,null,null,null,null,null,null,{"$f":"+K5+K7+K8","v":0},{"$f":"+L5+L7+L8","v":0},null,null,null,null,null,{"$f":"+R5+R6+R7+R8","v":0},{"$f":"+S5+S6+S7+S8","v":0}]
[]
["III.  PLANNED CHANGES IN INVENTORY"]
["From 9/16/24 to 9/15/25"]
[null,null,null,null,null,null,null,null,null,null,null,null,null,null,null,{"$f":"IF(M13=\"\",0,IF(M13>DATEVALUE(\"09/15/2025\"),0,\"Enter value you prorated here\"))","v":0},null,{"$f":"O13-K13","v":0},{"$f":"P13-L13","v":0},null,{"$f":"(IF(M13,IF(M13-$M$5>365,0,INT((365+$M$5-M13+(365/24))/(365/12))),0))","v":0},{"$f":"IF(P13=0,0,IF(S13<0,((P13/U13)),(P13/U13)))","v":0},{"$f":"+Z13*12","v":0},{"$f":"(IF(I13,IF(I13-$M$5>365,0,INT((365+$M$5-I13+(365/24))/(365/12))),0))","v":0},{"$f":"IF(X13=0,0,L13/X13)","v":0},{"$f":"IF(M13>DATEVALUE(\"9/15/2025\"),0,V13-Y13)","v":0}]
[null,null,null,null,null,null,null,null,null,null,null,null,null,null,null,{"$f":"IF(M14=\"\",0,IF(M14>DATEVALUE(\"09/15/2025\"),0,\"Enter value you prorated here\"))","v":0},null,{"$f":"O14-K14","v":0},0,null,{"$f":"(IF(M14,IF(M14-$M$5>365,0,INT((365+$M$5-M14+(365/24))/(365/12))),0))","v":0},{"$f":"IF(P14=0,0,IF(S14<0,((P14/U14)),(P14/U14)))","v":0},0,{"$f":"(IF(I14,IF(I14-$M$5>365,0,INT((365+$M$5-I14+(365/24))/(365/12))),0))","v":0},{"$f":"IF(X14=0,0,L14/X14)","v":0},{"$f":"IF(M14>DATEVALUE(\"9/15/2025\"),0,V14-Y14)","v":0}]
[null,null,null,null,null,null,null,null,null,null,null,null,null,null,null,0,null,0,0,null,0,0,0,0,0,0]
[null,null,null,null,null,null,null,null,null,null,null,null,null,null,null,0,null,0,0,null,0,0,0,0,0,0]
[null,null,null,null,null,null,null,null,null,null,null,null,null,null,null,0,null,0,0,null,0,0,0,0,0,0]
[null,null,null,null,null,null,null,null,null,null,null,null,null,null,null,0,null,0,0,null,0,0,0,0,0,0]
[null,null,null,null,null,null,null,null,null,null,null,null,null,null,null,0,null,0,0,null,0,0,0,0,0,0]
[null,null,null,null,null,null,null,null,null,null,null,null,null,null,null,0,null,0,0,null,0,0,0,0,0,0]
[null,null,null,null,null,null,null,null,null,null,null,null,null,null,null,0,null,0,0,null,0,0,0,0,0,0]
[null,null,null,null,null,null,null,null,null,null,null,null,null,null,null,0,null,0,0,null,0,0,0,0,0,0]
[null,null,null,null,null,null,null,null,null,null,null,null,null,null,null,0,null,0,0,null,0,0,0,0,0,0]
[null,null,null,null,null,null,null,null,null,null,null,null,null,null,null,0,null,0,0,null,0,0,0,0,0,0]
[null,null,null,null,null,null,null,null,null,null,null,null,null,null,null,0,null,0,0,null,0,0,0,0,0,0]
[null,null,null,null,null,null,null,null,null,null,null,null,null,null,null,0,null,0,0,null,0,0,0,0,0,0]
[null,null,null,null,null,null,null,null,null,null,null,null,null,null,null,0,null,0,0,null,0,0,0,0,0,0]
[null,null,null,null,null,null,null,null,null,null,null,null,null,null,null,0,null,0,0,null,0,0,0,0,0,0]
[null,null,null,null,null,null,null,null,null,null,null,null,null,null,null,0,null,0,0,null,0,0,0,0,0,0]
[null,null,null,null,null,null,null,null,null,null,null,null,null,null,null,0,null,0,0,null,0,0,0,0,0,0]
[null,null,null,null,null,null,null,null,null,null,null,null,null,null,null,0,null,0,0,null,0,0,0,0,0,0]
[null,null,null,null,null,null,null,null,null,null,null,null,null,null,null,0,null,0,0,null,0,0,0,0,0,0]
[null,null,null,null,null,null,null,null,null,null,null,null,null,null,null,0,null,0,0,null,0,0,0,0,0,0]
[null,null,null,null,null,null,null,null,null,null,null,null,null,null,null,0,null,0,0,null,0,0,0,0,0,0]
[null,null,null,null,null,null,null,null,null,null,null,null,null,null,null,0,null,0,0,null,0,0,0,0,0,0]
[null,null,null,null,null,null,null,null,null,null,null,null,null,null,null,0,null,0,0,null,0,0,0,0,0,0]
[null,null,null,null,null,null,null,null,null,null,null,null,null,null,null,0,null,0,0,null,0,0,0,0,0,0]
[null,null,null,null,null,null,null,null,null,null,null,null,null,null,null,0,null,0,0,null,0,0,0,0,0,0]
[null,null,null,null,null,null,null,null,null,null,null,null,null,null,null,0,null,0,0,null,0,0,0,0,0,0]
[null,null,null,null,null,null,null,null,null,null,null,null,null,null,null,0,null,0,0,null,0,0,0,0,0,0]
[null,null,null,null,null,null,null,null,null,null,null,null,null,null,null,0,null,0,0,null,0,0,0,0,0,0]
[null,null,null,null,null,null,null,null,null,null,null,null,null,null,null,0,null,0,0,null,0,0,0,0,0,0]
[null,null,null,null,null,null,null,null,null,null,null,null,null,null,null,0,null,0,0,null,0,0,0,0,0,0]
[null,null,null,null,null,null,null,null,null,null,null,null,null,null,null,0,null,0,0,null,0,0,0,0,0,0]
[null,null,null,null,null,null,null,null,null,null,null,null,null,null,null,0,null,0,0,null,0,0,0,0,0,0]
[null,null,null,null,null,null,null,null,null,null,null,null,null,null,null,0,null,0,0,null,0,0,0,0,0,0]
["Subtotal:",null,null,null,null,null,null,null,null,{"$f":"SUM(J11:J46)","v":0},{"$f":"SUM(K13:K46)","v":0},{"$f":"SUM(L13:L46)","v":0},null,{"$f":"SUM(N13:N46)","v":0},0,0,0,0,0,null,null,{"$f":"SUM(V13:V46)","v":0},{"$f":"SUM(W13:W46)","v":0}]
["IV.  REQUESTED PROGRAM CHANGES IN INVENTORY"]
["FY2025 Only"]
[null,null,null,null,null,null,null,null,null,null,null,null,null,null,null,{"$f":"IF(M50=\"\",0,IF(M50>DATEVALUE(\"09/15/2025\"),0,\"Enter value you prorated here\"))","v":0},null,{"$f":"O50-K50","v":0},{"$f":"P50-L50","v":0},null,{"$f":"(IF(M50,IF(M50-$M$5>365,0,INT((365+$M$5-M50+(365/24))/(365/12))),0))","v":0},{"$f":"IF(P50=0,0,IF(S50<0,((P50/U50)),(P50/U50)))","v":0},{"$f":"+Z50*12","v":0},{"$f":"(IF(I50,IF(I50-$M$5>365,0,INT((365+$M$5-I50+(365/24))/(365/12))),0))","v":0},{"$f":"IF(X50=0,0,L50/X50)","v":0},{"$f":"IF(M50>DATEVALUE(\"9/15/2025\"),0,V50-Y50)","v":0}]
[null,null,null,null,null,null,null,null,null,null,null,null,null,null,null,{"$f":"IF(M51=\"\",0,IF(M51>DATEVALUE(\"09/15/2025\"),0,\"Enter value you prorated here\"))","v":0},null,0,0,null,0,0,0,0,0,{"$f":"IF(M51>DATEVALUE(\"9/15/2025\"),0,V51-Y51)","v":0}]
[null,null,null,null,null,null,null,null,null,null,null,null,null,null,null,0,null,0,0,null,0,0,0,0,0,0]
[null,null,null,null,null,null,null,null,null,null,null,null,null,null,null,0,null,0,0,null,0,0,0,0,0,0]
[null,null,null,null,null,null,null,null,null,null,null,null,null,null,null,0,null,0,0,null,0,0,0,0,0,0]
[null,null,null,null,null,null,null,null,null,null,null,null,null,null,null,0,null,0,0,null,0,0,0,0,0,0]
[null,null,null,null,null,null,null,null,null,null,null,null,null,null,null,0,null,0,0,null,0,0,0,0,0,0]
[null,null,null,null,null,null,null,null,null,null,null,null,null,null,null,0,null,0,0,null,0,0,0,0,0,0]
[null,null,null,null,null,null,null,null,null,null,null,null,null,null,null,0,null,0,0,null,0,0,0,0,0,0]
[null,null,null,null,null,null,null,null,null,null,null,null,null,null,null,0,null,0,0,null,0,0,0,0,0,0]
[null,null,null,null,null,null,null,null,null,null,null,null,null,null,null,0,null,0,0,null,0,0,0,0,0,0]
[null,null,null,null,null,null,null,null,null,null,null,null,null,null,null,0,null,0,0,null,0,0,0,0,0,0]
[null,null,null,null,null,null,null,null,null,null,null,null,null,null,null,0,null,0,0,null,0,0,0,0,0,0]
[null,null,null,null,null,null,null,null,null,null,null,null,null,null,null,0,null,0,0,null,0,0,0,0,0,0]
[null,null,null,null,null,null,null,null,null,null,null,null,null,null,null,0,null,0,0,null,0,0,0,0,0,0]
[null,null,null,null,null,null,null,null,null,null,null,null,null,null,null,0,null,0,0,null,0,0,0,0,0,0]
[null,null,null,null,null,null,null,null,null,null,null,null,null,null,null,0,null,0,0,null,0,0,0,0,0,0]
["Subtotal:",null,null,null,null,null,null,null,null,null,{"$f":"SUM(K50:K66)","v":0},{"$f":"SUM(L50:L66)","v":0},null,{"$f":"SUM(N50:N66)","v":0},{"$f":"SUM(O50:O66)","v":0},{"$f":"SUM(P50:P66)","v":0},null,{"$f":"SUM(R50:R66)","v":0},{"$f":"SUM(S50:S66)","v":0},null,null,{"$f":"SUM(V50:V66)","v":0},{"$f":"SUM(W50:W66)","v":0}]
[]
[]
["NOTE:  The GSA Rent Estimate calculations, the GSA Anticipated Inventory Changes file and the modified Exhibit 54 template are provided to assist you in completing your Space Budget Justification report.  However, the user of this information is ultimately responsible for the accuracy of their Agency Budget Request.  Therefore, we strongly recommend that you thoroughly review all of the data in these files and to make all necessary adjustments for any errors or omissions on our part that may have occurred in the compilation of this data."]

{"sheet":"BY","index":4,"n_rows":71,"n_cols":26,"rows_kept":71,"cut":false,"hidden":false,"merged":[[70,0,70,7],[1,23,3,23],[1,24,3,24],[1,25,3,25],[1,7,1,11],[1,12,1,15],[0,16,0,19],[1,22,3,22],[1,20,3,20],[1,21,3,21],[0,0,0,1],[0,7,0,11],[0,2,0,6],[0,12,0,15]]}
["I.  AGENCY IDENTIFICATION",null,"ASSIGNMENT INFORMATION",null,null,null,null,"GSA EXPECTED ANNUAL RENT",null,null,null,null,"AGENCY INVENTORY CHANGE INFORMATION",null,null,null,"AGENCY BUDGET REQUEST",null,null,null,null,null,"Annual Amount"]
["Agency Name:",{"$f":"'Corrections PY'!B2","v":0},null,null,null,null,null,"Rent Estimate plus Anticipated Inventory Changes",null,null,null,null,"Agency calculation of Inventory Change Impact",null,null,null,null,null,"GSA Rent",null,"# Months of Change"," Agency Monthly Rent Amount","PY, CY & BY Carryover Amount to BY+1 (includes BY+1 CPI factor)","# Months of Change"," GSAMonthly Rent Amount"," Change in Monthly Amount"]
["Bureau Name:",{"$f":"'Corrections PY'!B3","v":0},"GSA","Real","Building",null,null,"OA","Effective Date",null,"Rentable ","Rent Estimate","Effective",null,"Rentable","Agency's",null,null," Estimate","Explanation"]
["GSA Bureau Code:",{"$f":"'Corrections PY'!B4","v":0},"Region No","Property ID","Name","City","State","No","Date of Change",null,"SF","+ CY impact of Anticipated IC's","Date of    Change",null,"SF","calculation of IC Impact",null,"Rentable SF Change"," + Inventory Changes ","of Change"]
["II.  GSA BY BUDGET ESTIMATE (as the base)",null,null,null,null,null,null,null,null,null,{"$f":"'GSA IC Worksheet'!E2","v":0},{"$f":"'GSA IC Worksheet'!E3","v":0},"2025-10-01",null,null,null,null,{"$f":"+K5","v":0},{"$f":"+L5","v":0}]
["Chargebacks Corrections PY x OMB CPI ",null,null,null,null,null,null,null,null,null,null,null,null,null,null,null,null,{"$f":"+CY!R6","v":0},{"$f":"+CY!S6*(1+SUM!N15)","v":0},null,null,null,{"$f":"S6*(1+(SUM!Q15))","v":0}]
["Anticipated Inventory Changes PY",null,null,null,null,null,null,null,null,null,{"$f":"'GSA IC Worksheet'!G17","v":0},{"$f":"'GSA IC Worksheet'!E17","v":0},null,null,null,null,null,{"$f":"K7+PY!R43","v":0},{"$f":"'GSA IC Worksheet'!E17+CY!W7","v":0},null,null,null,{"$f":"CY!W7*(1+SUM!$Q$15)","v":0}]
["Net Anticipated Inventory Changes CY ",null,null,null,null,null,null,null,null,null,{"$f":"'GSA IC Worksheet'!G18","v":0},{"$f":"'GSA IC Worksheet'!E18","v":0},null,null,null,null,null,{"$f":"K8+CY!R47+CY!R67","v":0},{"$f":"'GSA IC Worksheet'!E18+CY!W8","v":0},null,null,null,{"$f":"CY!W8*(1+SUM!$Q$15)","v":0}]
["Anticipated Inventory Changes BY",null,null,null,null,null,null,null,null,null,{"$f":"'GSA IC Worksheet'!G19","v":0},{"$f":"'GSA IC Worksheet'!E19","v":0},null,null,null,null,null,{"$f":"K9+SUM(R14:R47) + SUM(R50:R67)","v":0},{"$f":"L9+S48+S68","v":0},null,null,null,{"$f":"(W48+W68)*(1+(SUM!Q15))","v":0}]
["Total Budget Request BY",null,null,null,null,null,null,null,null,null,{"$f":"+K5+K6+K7+K8+K9","v":0},{"$f":"+L5+L6+L7+L8+L9","v":0},null,null,null,null,null,{"$f":"+R5+R6+R7+R8+R9","v":0},{"$f":"+S5+S6+S7+S8+S9","v":0}]
[80]
["III.  PLANNED CHANGES IN INVENTORY"]
["From 9/16/25 to 9/15/26"]
[null,null,null,null,null,null,null,null,null,null,null,null,null,null,null,{"$f":"IF(M14=\"\",0,IF(M14>DATEVALUE(\"09/15/2026\"),0,\"Enter value you prorated here\"))","v":0},null,{"$f":"O14-K14","v":0},{"$f":"P14-L14","v":0},null,{"$f":"(IF(M14,IF(M14-$M$5>365,0,INT((365+$M$5-M14+(365/24))/(365/12))),0))","v":0},{"$f":"IF(P14=0,0,IF(S14<0,((P14/U14)),(P14/U14)))","v":0},{"$f":"+Z14*12","v":0},{"$f":"(IF(I14,IF(I14-$M$5>365,0,INT((365+$M$5-I14+(365/24))/(365/12))),0))","v":0},{"$f":"IF(X14=0,0,L14/X14)","v":0},{"$f":"IF(M14>DATEVALUE(\"09/15/2026\"),0,V14-Y14)","v":0}]
[null,null,null,null,null,null,null,null,null,null,null,null,null,null,null,{"$f":"IF(M15=\"\",0,IF(M15>DATEVALUE(\"09/15/2026\"),0,\"Enter value you prorated here\"))","v":0},null,{"$f":"O15-K15","v":0},{"$f":"P15-L15","v":0},null,{"$f":"(IF(M15,IF(M15-$M$5>365,0,INT((365+$M$5-M15+(365/24))/(365/12))),0))","v":0},{"$f":"IF(P15=0,0,IF(S15<0,((P15/U15)),(P15/U15)))","v":0},{"$f":"+Z15*12","v":0},{"$f":"(IF(I15,IF(I15-$M$5>365,0,INT((365+$M$5-I15+(365/24))/(365/12))),0))","v":0},{"$f":"IF(X15=0,0,L15/X15)","v":0},{"$f":"IF(M15>DATEVALUE(\"09/15/2026\"),0,V15-Y15)","v":0}]
[null,null,null,null,null,null,null,null,null,null,null,null,null,null,null,0,null,0,0,null,0,0,0,0,0,0]
[null,null,null,null,null,null,null,null,null,null,null,null,null,null,null,0,null,0,0,null,0,0,0,0,0,0]
[null,null,null,null,null,null,null,null,null,null,null,null,null,null,null,0,null,0,0,null,0,0,0,0,0,0]
[null,null,null,null,null,null,null,null,null,null,null,null,null,null,null,0,null,0,0,null,0,0,0,0,0,0]
[null,null,null,null,null,null,null,null,null,null,null,null,null,null,null,0,null,0,0,null,0,0,0,0,0,0]
[null,null,null,null,null,null,null,null,null,null,null,null,null,null,null,0,null,0,0,null,0,0,0,0,0,0]
[null,null,null,null,null,null,null,null,null,null,null,null,null,null,null,0,null,0,0,null,0,0,0,0,0,0]
[null,null,null,null,null,null,null,null,null,null,null,null,null,null,null,0,null,0,0,null,0,0,0,0,0,0]
[null,null,null,null,null,null,null,null,null,null,null,null,null,null,null,0,null,0,0,null,0,0,0,0,0,0]
[null,null,null,null,null,null,null,null,null,null,null,null,null,null,null,0,null,0,0,null,0,0,0,0,0,0]
[null,null,null,null,null,null,null,null,null,null,null,null,null,null,null,0,null,0,0,null,0,0,0,0,0,0]
[null,null,null,null,null,null,null,null,null,null,null,null,null,null,null,0,null,0,0,null,0,0,0,0,0,0]
[null,null,null,null,null,null,null,null,null,null,null,null,null,null,null,0,null,0,0,null,0,0,0,0,0,0]
[null,null,null,null,null,null,null,null,null,null,null,null,null,null,null,0,null,0,0,null,0,0,0,0,0,0]
[null,null,null,null,null,null,null,null,null,null,null,null,null,null,null,0,null,0,0,null,0,0,0,0,0,0]
[null,null,null,null,null,null,null,null,null,null,null,null,null,null,null,0,null,0,0,null,0,0,0,0,0,0]
[null,null,null,null,null,null,null,null,null,null,null,null,null,null,null,0,null,0,0,null,0,0,0,0,0,0]
[null,null,null,null,null,null,null,null,null,null,null,null,null,null,null,0,null,0,0,null,0,0,0,0,0,0]
[null,null,null,null,null,null,null,null,null,null,null,null,null,null,null,0,null,0,0,null,0,0,0,0,0,0]
[null,null,null,null,null,null,null,null,null,null,null,null,null,null,null,0,null,0,0,null,0,0,0,0,0,0]
[null,null,null,null,null,null,null,null,null,null,null,null,null,null,null,0,null,0,0,null,0,0,0,0,0,0]
[null,null,null,null,null,null,null,null,null,null,null,null,null,null,null,0,null,0,0,null,0,0,0,0,0,0]
[null,null,null,null,null,null,null,null,null,null,null,null,null,null,null,0,null,0,0,null,0,0,0,0,0,0]
[null,null,null,null,null,null,null,null,null,null,null,null,null,null,null,0,null,0,0,null,0,0,0,0,0,0]
[null,null,null,null,null,null,null,null,null,null,null,null,null,null,null,0,null,0,0,null,0,0,0,0,0,0]
[null,null,null,null,null,null,null,null,null,null,null,null,null,null,null,0,null,0,0,null,0,0,0,0,0,0]
[null,null,null,null,null,null,null,null,null,null,null,null,null,null,null,0,null,0,0,null,0,0,0,0,0,0]
[null,null,null,null,null,null,null,null,null,null,null,null,null,null,null,0,null,0,0,null,0,0,0,0,0,0]
[null,null,null,null,null,null,null,null,null,null,null,null,null,null,null,0,null,0,0,null,0,0,0,0,0,0]
[null,null,null,null,null,null,null,null,null,null,null,null,null,null,null,0,null,0,0,null,0,0,0,0,0,0]
[null,null,null,null,null,null,null,null,null,null,null,null,null,null,null,0,null,0,0,null,0,0,0,0,0,0]
[null,null,null,null,null,null,null,null,null,null,null,null,null,null,null,0,null,0,0,null,0,0,0,0,0,0]
["Subtotal:",null,null,null,null,null,null,null,null,null,{"$f":"SUM(K14:K47)","v":0},{"$f":"SUM(L14:L47)","v":0},null,null,{"$f":"SUM(O14:O47)","v":0},{"$f":"SUM(P14:P47)","v":0},null,{"$f":"SUM(R14:R47)","v":0},{"$f":"SUM(S14:S47)","v":0},null,null,{"$f":"SUM(V14:V47)","v":0},{"$f":"SUM(W14:W47)","v":0},null,{"$f":"SUM(Y14:Y47)","v":0},{"$f":"SUM(Z14:Z47)","v":0}]
["IV.  REQUESTED PROGRAM CHANGES IN INVENTORY"]
["FY2026 Only",null,null,null,null,null,null,null,null,null,null,null,null,null,null,{"$f":"IF(M50=\"\",0,IF(M50>DATEVALUE(\"09/15/2026\"),0,\"Enter value you prorated here\"))","v":0},null,{"$f":"O50-K50","v":0},{"$f":"P50-L50","v":0},null,{"$f":"(IF(M50,IF(M50-$M$5>365,0,INT((365+$M$5-M50+(365/24))/(365/12))),0))","v":0},{"$f":"IF(P50=0,0,IF(S50<0,((P50/U50)),(P50/U50)))","v":0},{"$f":"+Z50*12","v":0},{"$f":"(IF(I50,IF(I50-$M$5>365,0,INT((365+$M$5-I50+(365/24))/(365/12))),0))","v":0},{"$f":"IF(X50=0,0,L50/X50)","v":0},{"$f":"IF(M50>DATEVALUE(\"09/15/2026\"),0,V50-Y50)","v":0}]
[null,null,null,null,null,null,null,null,null,null,null,null,null,null,null,0,null,{"$f":"O51-K51","v":0},{"$f":"P51-L51","v":0},null,{"$f":"(IF(M51,IF(M51-$M$5>365,0,INT((365+$M$5-M51+(365/24))/(365/12))),0))","v":0},{"$f":"IF(P51=0,0,IF(S51<0,((P51/U51)),(P51/U51)))","v":0},{"$f":"+Z51*12","v":0},{"$f":"(IF(I51,IF(I51-$M$5>365,0,INT((365+$M$5-I51+(365/24))/(365/12))),0))","v":0},{"$f":"IF(X51=0,0,L51/X51)","v":0},0]
[null,null,null,null,null,null,null,null,null,null,null,null,null,null,null,0,null,0,0,null,0,0,0,0,0,0]
[null,null,null,null,null,null,null,null,null,null,null,null,null,null,null,0,null,0,0,null,0,0,0,0,0,0]
[null,null,null,null,null,null,null,null,null,null,null,null,null,null,null,0,null,0,0,null,0,0,0,0,0,0]
[null,null,null,null,null,null,null,null,null,null,null,null,null,null,null,0,null,0,0,null,0,0,0,0,0,0]
[null,null,null,null,null,null,null,null,null,null,null,null,null,null,null,0,null,0,0,null,0,0,0,0,0,0]
[null,null,null,null,null,null,null,null,null,null,null,null,null,null,null,0,null,0,0,null,0,0,0,0,0,0]
[null,null,null,null,null,null,null,null,null,null,null,null,null,null,null,0,null,0,0,null,0,0,0,0,0,0]
[null,null,null,null,null,null,null,null,null,null,null,null,null,null,null,0,null,0,0,null,0,0,0,0,0,0]
[null,null,null,null,null,null,null,null,null,null,null,null,null,null,null,0,null,0,0,null,0,0,0,0,0,0]
[null,null,null,null,null,null,null,null,null,null,null,null,null,null,null,0,null,0,0,null,0,0,0,0,0,0]
[null,null,null,null,null,null,null,null,null,null,null,null,null,null,null,0,null,0,0,null,0,0,0,0,0,0]
[null,null,null,null,null,null,null,null,null,null,null,null,null,null,null,0,null,0,0,null,0,0,0,0,0,0]
[null,null,null,null,null,null,null,null,null,null,null,null,null,null,null,0,null,0,0,null,0,0,0,0,0,0]
[null,null,null,null,null,null,null,null,null,null,null,null,null,null,null,0,null,0,0,null,0,0,0,0,0,0]
[null,null,null,null,null,null,null,null,null,null,null,null,null,null,null,0,null,0,0,null,0,0,0,0,0,0]
[null,null,null,null,null,null,null,null,null,null,null,null,null,null,null,0,null,0,0,null,0,0,0,0,0,0]
["Subtotal:",null,null,null,null,null,null,null,null,null,{"$f":"SUM(K50:K67)","v":0},{"$f":"SUM(L50:L67)","v":0},null,{"$f":"SUM(N50:N67)","v":0},{"$f":"SUM(O50:O67)","v":0},{"$f":"SUM(P50:P67)","v":0},null,{"$f":"SUM(R50:R67)","v":0},{"$f":"SUM(S50:S67)","v":0},null,null,{"$f":"SUM(V50:V67)","v":0},{"$f":"SUM(W50:W67)","v":0},null,{"$f":"SUM(Y50:Y67)","v":0},{"$f":"SUM(Z50:Z67)","v":0}]
[]
[]
["NOTE:  The GSA Rent Estimate calculations, the GSA Anticipated Inventory Changes file and the modified Exhibit 54 template are provided to assist you in completing your Space Budget Justification report.  However, the user of this information is ultimately responsible for the accuracy of their Agency Budget Request.  Therefore, we strongly recommend that you thoroughly review all of the data in these files and to make all necessary adjustments for any errors or omissions on our part that may have occurred in the compilation of this data."]

{"sheet":"BY+1","index":5,"n_rows":55,"n_cols":20,"rows_kept":55,"cut":false,"hidden":false,"merged":[[54,0,54,3],[1,12,1,15],[0,16,0,19],[0,0,0,1],[0,7,0,11],[0,2,0,6],[0,12,0,15]]}
["I.  AGENCY IDENTIFICATION",null,"ASSIGNMENT INFORMATION",null,null,null,null,"GSA ANNUALIZED RENT AND RSF FROM BY DATA",null,null,null,null,"AGENCY INVENTORY CHANGE INFORMATION",null,null,null," ANTICIPATED AGENCY BUDGET REQUEST"]
["Agency Name:",{"$f":"'Corrections PY'!B2","v":0},null,null,null,null,null,null,null,null,null,"BY Rent Estimate","Agency calculation of Inventory Change Impact",null,null,null,null,null,"GSA Rent"]
["Bureau Name:",{"$f":"'Corrections PY'!B3","v":0},"GSA","Real","Building",null,null,"OA","Effective ",null,"Rentable ","x OMB CPI","Effective",null,"Rentable ","Agency's",null,null," Estimate","Explanation"]
["GSA Bureau Code:",{"$f":"'Corrections PY'!B4","v":0},"Region No","Property ID","Name","City","State","No","Date of Change",null,"SF","+ BY+1 impact of Anticipated IC's","Date of Change",null,"SF","calculation of IC Impact",null,"Rentable SF Change"," + Inventory Changes ","of Change"]
["II.  GSA BUDGET RENT ESTIMATE x OMB CPI",null,null,null,null,null,null,null,null,null,{"$f":"+BY!K5","v":0},{"$f":"BY!S5*(1+(SUM!Q15))","v":0},"2026-10-01",null,null,null,null,{"$f":"+BY!R5","v":0},{"$f":"BY!S5*(1+(SUM!Q15))","v":0}]
["Chargebacks Corrections PY x OMB CPI ",null,null,null,null,null,null,null,null,null,null,null,null,null,null,null,null,{"$f":"+BY!R6","v":0},{"$f":"+BY!S6*(1+SUM!Q15)","v":0}]
["Anticipated Inventory Changes PY",null,null,null,null,null,null,null,null,null,{"$f":"BY!R7","v":0},{"$f":"BY!S7*(1+SUM!Q15)","v":0},null,null,null,null,null,{"$f":"K7","v":0},0]
["Net Anticipated Inventory Changes CY ",null,null,null,null,null,null,null,null,null,{"$f":"BY!R8","v":0},{"$f":"BY!S8*(1+SUM!Q15)","v":0},null,null,null,null,null,0,0]
["Net Anticipated Inventory Changes BY x OMB CPI",null,null,null,null,null,null,null,null,null,{"$f":"BY!R9","v":0},{"$f":"BY!S9*(1+SUM!Q15)","v":0},null,null,null,null,null,0,0]
["Anticipated Inventory Changes BY+1",null,null,null,null,null,null,null,null,null,0,0,null,null,null,null,null,{"$f":"K10+R32 + R52","v":0},{"$f":"L10+S32 + S52","v":0}]
["Projected Budget Request BY+1",null,null,null,null,null,null,null,null,null,{"$f":"+K5+K7+K8+K9+K10","v":0},{"$f":"+L5+L7+L8+L9+L10","v":0},null,null,null,null,null,{"$f":"+R5+R6+R7+R8+R9+R10","v":0},{"$f":"+S5+S6+S7+S8+S9+S10","v":0}]
[80]
["II.  PLANNED CHANGES IN INVENTORY"]
["BY+1 Projects in the Pipeline Only"]
[null,null,null,null,null,null,null,null,null,null,null,null,null,null,null,null,null,{"$f":"O15-K15","v":0},{"$f":"P15-L15","v":0}]
[null,null,null,null,null,null,null,null,null,null,null,null,null,null,null,null,null,{"$f":"O16-K16","v":0},{"$f":"P16-L16","v":0}]
[null,null,null,null,null,null,null,null,null,null,null,null,null,null,null,null,null,0,0]
[null,null,null,null,null,null,null,null,null,null,null,null,null,null,null,null,null,0,0]
[null,null,null,null,null,null,null,null,null,null,null,null,null,null,null,null,null,0,0]
[null,null,null,null,null,null,null,null,null,null,null,null,null,null,null,null,null,0,0]
[null,null,null,null,null,null,null,null,null,null,null,null,null,null,null,null,null,0,0]
[null,null,null,null,null,null,null,null,null,null,null,null,null,null,null,null,null,0,0]
[null,null,null,null,null,null,null,null,null,null,null,null,null,null,null,null,null,0,0]
[null,null,null,null,null,null,null,null,null,null,null,null,null,null,null,null,null,0,0]
[null,null,null,null,null,null,null,null,null,null,null,null,null,null,null,null,null,0,0]
[null,null,null,null,null,null,null,null,null,null,null,null,null,null,null,null,null,0,0]
[null,null,null,null,null,null,null,null,null,null,null,null,null,null,null,null,null,0,0]
[null,null,null,null,null,null,null,null,null,null,null,null,null,null,null,null,null,0,0]
[null,null,null,null,null,null,null,null,null,null,null,null,null,null,null,null,null,0,0]
[null,null,null,null,null,null,null,null,null,null,null,null,null,null,null,null,null,0,0]
[null,null,null,null,null,null,null,null,null,null,null,null,null,null,null,null,null,0,0]
["Subtotal:",null,null,null,null,null,null,null,null,null,{"$f":"SUM(K15:K31)","v":0},{"$f":"SUM(L15:L31)","v":0},null,null,{"$f":"SUM(O15:O31)","v":0},0,null,0,0]
["III.  REQUESTED PROGRAM CHANGES IN INVENTORY"]
["BY+1 Only",null,null,null,null,null,null,null,null,null,null,null,null,null,null,null,null,{"$f":"O34-K34","v":0},{"$f":"P34-L34","v":0}]
[null,null,null,null,null,null,null,null,null,null,null,null,null,null,null,null,null,{"$f":"O35-K35","v":0},{"$f":"P35-L35","v":0}]
[null,null,null,null,null,null,null,null,null,null,null,null,null,null,null,null,null,0,0]
[null,null,null,null,null,null,null,null,null,null,null,null,null,null,null,null,null,0,0]
[null,null,null,null,null,null,null,null,null,null,null,null,null,null,null,null,null,0,0]
[null,null,null,null,null,null,null,null,null,null,null,null,null,null,null,null,null,0,0]
[null,null,null,null,null,null,null,null,null,null,null,null,null,null,null,null,null,0,0]
[null,null,null,null,null,null,null,null,null,null,null,null,null,null,null,null,null,0,0]
[null,null,null,null,null,null,null,null,null,null,null,null,null,null,null,null,null,0,0]
[null,null,null,null,null,null,null,null,null,null,null,null,null,null,null,null,null,0,0]
[null,null,null,null,null,null,null,null,null,null,null,null,null,null,null,null,null,0,0]
[null,null,null,null,null,null,null,null,null,null,null,null,null,null,null,null,null,0,0]
[null,null,null,null,null,null,null,null,null,null,null,null,null,null,null,null,null,0,0]
[null,null,null,null,null,null,null,null,null,null,null,null,null,null,null,null,null,0,0]
[null,null,null,null,null,null,null,null,null,null,null,null,null,null,null,null,null,0,0]
[null,null,null,null,null,null,null,null,null,null,null,null,null,null,null,null,null,0,0]
[null,null,null,null,null,null,null,null,null,null,null,null,null,null,null,null,null,0,0]
[null,null,null,null,null,null,null,null,null,null,null,null,null,null,null,null,null,0,0]
["Subtotal:",null,null,null,null,null,null,null,null,null,{"$f":"SUM(K34:K51)","v":0},{"$f":"SUM(L34:L51)","v":0},null,null,{"$f":"SUM(O34:O51)","v":0},0,null,0,0]
[]
[]
["NOTE:  The GSA Rent Estimate calculations, the GSA Anticipated Inventory Changes file and the modified Exhibit 54 template are provided to assist you in completing your Space Budget Justification report.  However, the user of this information is ultimately responsible for the accuracy of their Agency Budget Request.  Therefore, we strongly recommend that you thoroughly review all of the data in these files and to make all necessary adjustments for any errors or omissions on our part that may have occurred in the compilation of this data."]

{"sheet":"SUM","index":6,"n_rows":72,"n_cols":17,"rows_kept":72,"cut":false,"hidden":false,"merged":[[5,1,5,2],[71,0,77,4],[27,3,27,4],[69,0,69,7],[0,12,0,16],[0,0,0,2],[14,2,14,4],[36,1,36,3],[17,1,17,4],[6,1,6,2],[8,1,8,2],[46,2,46,4],[5,3,5,5],[18,1,18,2],[12,15,12,16],[7,1,7,2],[31,1,31,2],[16,1,16,4],[18,3,18,4],[22,3,22,4],[23,1,23,2],[29,1,29,2],[30,1,30,2],[24,1,24,2],[25,1,25,2],[26,1,26,2],[28,1,28,2],[6,3,6,5],[19,1,19,2],[10,1,10,16],[8,3,8,5],[7,3,7,5],[12,12,12,13],[12,6,12,7],[9,1,9,16],[12,9,12,10],[65,1,65,3],[60,1,60,2],[62,1,62,4],[37,2,37,3],[49,2,49,3],[56,2,56,4],[48,1,48,3]]}
["EXHIBIT 54 ",null,null,null,null,null,null,null,null,null,null,null,"RENTAL PAYMENTS FOR SPACE AND LAND"]
[]
[]
[null,"Space Budget Justification"]
[]
["I.","Agency:",null,{"$f":"PY!$B$2","v":0}]
[null,"Bureau:",null,{"$f":"PY!$B$3","v":0}]
[null,"GSA Bureau Code:",null,{"$f":"PY!$B$4","v":0}]
[null,"Date:",null,{"$f":"NOW()","v":"2024-05-29T16:53:19.980"}]
[null,{"$f":"D7","v":0}]
[null,"(obligations in thousands of dollars)"]
[]
[null,null,null,null,null,null,"PY",null,null,"CY",null,null,"BY",null,null,"BY+1"]
[null,null,null,null,null,null,"SQ  FT","$",null,"SQ  FT","$",null,"SQ  FT","$",null,"SQ  FT","$"]
[null,null,"OMB approved inflation factor:",null,null,null,null,0.02,null,null,2.1000000000000001E-2,null,null,2.1000000000000001E-2,null,null,2.1000000000000001E-2]
[null,null,null,null,null,null,null,null,null,null," "]
[null,"PART 1.A:  RENTAL PAYMENTS TO GSA"]
["II.","GSA rent estimate",null,null,null,null,{"$f":"PY!K5","v":0},{"$f":"PY!L5/1000","v":0},null,{"$f":"CY!$K$5","v":0},{"$f":"CY!$L$5/1000","v":0},null,{"$f":"BY!$K$5","v":0},{"$f":"BY!$L$5/1000","v":0},null,{"$f":"M18","v":0},{"$f":"N18*(1+Q15)","v":0}]
["III.","From Worksheet TAB",null,"Agency adjustments to the bill:"]
[null,"Corrections PY",null,"Chargebacks: ",null,null,{"$f":"'Corrections PY'!$Q$6","v":0},{"$f":"'Corrections PY'!R6/1000","v":0},null,{"$f":"'Corrections PY'!$Q$6","v":0},{"$f":"CY!S6/1000","v":0},null,{"$f":"'Corrections PY'!$Q$6","v":0},{"$f":"K20*(1+N15)","v":0},null,{"$f":"'Corrections PY'!$Q$6","v":0},{"$f":"N20*(1+Q15)","v":0}]
[null,null,null,"Other adjustments",null,null,0,0,null,0,0,null,0,0,null,0,0]
[null,null,null,"Statutorily imposed rent caps",null,null,0,0,null,0,0,null,0,0,null,0,0]
["III.",null,null,"Planned changes to inventory:"]
[null,"PY",null,"PY",null,null,{"$f":"PY!$R$7","v":0},{"$f":"PY!$S$7/1000","v":0},null,{"$f":"PY!$R$7","v":0},{"$f":"CY!$S$7/1000","v":0},null,{"$f":"PY!$R$7","v":0},{"$f":"BY!S7/1000","v":0},null,{"$f":"PY!$R$7","v":0},{"$f":"N24*(1+Q15)","v":0}]
[null,"CY",null,"CY",null,null,null,null,null,{"$f":"CY!$K$8+CY!$R$47","v":0},{"$f":"(CY!$L$8+CY!S47)/1000","v":0},null,{"$f":"CY!K8+CY!$R$47","v":0},{"$f":"BY!S8/1000","v":0},null,{"$f":"CY!K8+CY!$R$47","v":0},{"$f":"N25*(1+Q15)","v":0}]
[null,"BY",null,"BY",null,null,null,null,null,null,null,null,{"$f":"BY!$K$9+BY!$R$48","v":0},{"$f":"(BY!$L$9+BY!$S$48)/1000","v":0},null,{"$f":"BY!$K$9+BY!$R$48","v":0},{"$f":"(BY!$L$9+BY!S48)/1000*(1+Q15)","v":0}]
[null,"BY+1",null,"BY+1",null,null,null,null,null,null,null,null,null,null,null,{"$f":"('BY+1'!R32)","v":0},{"$f":"('BY+1'!S32)/1000","v":0}]
["IV.",null,null,"Requested program changes:"]
[null,"PY",null,"PY"]
[null,"CY",null,"CY",null,null,null,null,null,{"$f":"CY!$R$67","v":0},{"$f":"CY!S67/1000","v":0}]
[null,"BY",null,"BY",null,null,null,null,null,null,null,null,{"$f":"BY!$R$68","v":0},{"$f":"BY!S68/1000","v":0}]
[null,"BY+1",null,"BY+1",null,null,null,null,null,null,null,null,null,null,null,{"$f":"'BY+1'!$R$52","v":0},{"$f":"'BY+1'!$S$52/1000","v":0}]
["V.","Total Workplace FIT(Furniture & Information Technology)"]
[null,"Total, net rental payments to GSA",null,null,null,null,{"$f":"SUM(G18:G24)","v":0},{"$f":"SUM(H18:H33)","v":0},null,{"$f":"SUM(J18:J30)","v":0},{"$f":"SUM(K18:K33)","v":0},null,{"$f":"SUM(M18:M31)","v":0},{"$f":"SUM(N18:N33)","v":0},null,{"$f":"SUM(P18:P32)","v":0},{"$f":"SUM(Q18:Q33)","v":0}]
[]
[null,"PART 1.B:  FUNDING SOURCES FOR RENTAL PAYMENTS to GSA"]
[null,"Funded by direct appropriations:"]
[null,null,"Account title and ID code:"]
[null,null,"Acct. 1",null,null,null,null,0,null,null,0,null,null,0,null,null,0]
[null,null,"Acct. 2",null,null,null,null,0,null,null,0,null,null,0,null,null,0]
[null,null,"Acct. 3",null,null,null,null,0,null,null,0,null,null,0,null,null,0]
[null,null,"Acct. 4",null,null,null,null,0,null,null,0,null,null,0,null,null,0]
[null,null,"Acct. 5",null,null,null,null,0,null,null,0,null,null,0,null,null,0]
[null,null,"Acct. 6",null,null,null,null,0,null,null,0,null,null,0,null,null,0]
[null,null,"Acct. 7",null,null,null,null,0,null,null,0,null,null,0,null,null,0]
[null,null,"Acct. 8  FIT",null,null,null,null,0,null,null,0,null,null,0,null,null,0]
[null,null,"Subtotal, direct appropriations",null,null,null,null,{"$f":"SUM(H39:H46)","v":0},null,null,{"$f":"SUM(K39:K46)","v":0},null,null,{"$f":"SUM(N39:N46)","v":0},null,null,{"$f":"SUM(Q39:Q46)","v":0}]
[]
[null,"Funded by other sources:"]
[null,null,"Account title and ID Code:"]
[null,null,"Acct. 1",null,null,null,null,0,null,null,0,null,null,0,null,null,0]
[null,null,"Acct. 2",null,null,null,null,0,null,null,0,null,null,0,null,null,0]
[null,null,"Acct. 3",null,null,null,null,0,null,null,0,null,null,0,null,null,0]
[null,null,"Acct. 4",null,null,null,null,0,null,null,0,null,null,0,null,null,0]
[null,null,"Acct. 5",null,null,null,null,0,null,null,0,null,null,0,null,null,0]
[null,null,"Acct. 6",null,null,null,null,0,null,null,0,null,null,0,null,null,0]
[null,null,"Subtotal, other funding sources",null,null,null,null,{"$f":"SUM(H51:H56)","v":0},null,null,{"$f":"SUM(K51:K56)","v":0},null,null,{"$f":"SUM(N51:N56)","v":0},null,null,{"$f":"SUM(Q51:Q56)","v":0}]
[]
[null,"Total funding sources (object class 23.1)",null,null,null,null,null,{"$f":"H57+H47","v":0},null,null,{"$f":"K57+K47","v":0},null,null,{"$f":"N57+N47","v":0},null,null,{"$f":"Q57+Q47","v":0}]
[]
[null,"Control difference",null,null,null,null,null,{"$f":"H59-H34","v":0},null,null,{"$f":"K59-K34","v":0},null,null,{"$f":"N59-N34","v":0},null,null,{"$f":"Q59-Q34","v":0}]
[]
[null,"  PART 2:  RENTAL PAYMENTS TO OTHERS"]
[null,"Non-Federal sources (object class 23.2)"]
[null,"Federal sources (object class 25.3)"]
[null,"Total rental payments to others",null,null,null,null,{"$f":"G65+G64","v":0},{"$f":"H65+H64","v":0},null,{"$f":"J65+J64","v":0},{"$f":"K65+K64","v":0},null,{"$f":"M65+M64","v":0},{"$f":"N65+N64","v":0},null,{"$f":"P65+P64","v":0},{"$f":"Q65+Q64","v":0}]
[]
[]
[]
["NOTE:  The GSA Rent Estimate calculations, the GSA Anticipated Inventory Changes file and the modified Exhibit 54 template are provided to assist you in completing your Space Budget Justification report.  However, the user of this information is ultimately responsible for the accuracy of their Agency Budget Request.  Therefore, we strongly recommend that you thoroughly review all of the data in these files and to make all necessary adjustments for any errors or omissions on our part that may have occurred in the compilation of this data."]
[]
["All spreadsheets have been password protected to avoid accidental overwriting of formulas.  To unlock password protection got to TOOLS - PROTECTION - UNPROTECT SPREADSHEET.  The password is 'Location\"."]

{"sheet":"blank","index":7,"n_rows":410,"n_cols":9,"rows_kept":410,"cut":false,"hidden":true,"merged":[]}
["Bureau Code","Bureau Name","Billed RSF","YTD Rent as of BRE Month","Total Bureau Projected Rent","Total Rent","Numeric Bureau Code",null,"Updated 5/21/24"]
["0005","HOUSE OF REP'TATIVES",127988,1422648,1355164,2777813,5]
["0019","SENATE",238476,3514397,3316554,6830951,19]
["0078","BOARD OF GOV OF FRS",7810,167669,167669,335338,78]
["0101","ARCHIT OF THE CAP-SE",120911,2635859,2635858,5271717,101]
["0200","US CAPITOL POLICE",0,2566.14,2566,5132,200]
["0300","LIBRARY OF CONGRESS",87300,1649493,1680557,3330050,300]
["0400","GPO",0,-4648,0,-4648,400]
["0500","GAO",186884,3193020,3232561,6425582,500]
["0915","MEDI&CHIP PAY&AC CM",8254,217561,240337,457899,915]
[1001,"JUD AD OFF US CRTS",64902,905399,900685,1806083,1001]
[1002,"JUD PUB DEF SRVC",1699907,25608293.800000001,25970816,51579110,1002]
[1003,"JUD CRTS DC",17531,319281,319285,638566,1003]
[1004,"JUD COMM DEF",8042,137206.92000000001,137211,274418,1004]
[1005,"JUD US CRT DST",761225,10042138,9957158,19999296,1005]
[1007,"JUD US CRT BNKRPTCY",107178,1710555,1660419,3370974,1007]
[1011,"JUD US CRT APP",23853,355414,364255,719669,1011]
[1013,"JUD US CLAIMS CT",133630,3997563,4047387,8044951,1013]
[1014,"BANK JUD CTRMS/CHMBR",3312440,44803251,41637350,86440601,1014]
[1015,"US CRT INTRNAT TRADE",136963,3917187,3891738,7808926,1015]
[1016,"BNKRPTCY CLERK",2706951,37545226,34215459,71760685,1016]
[1017,"JUD US CAFC",136698,3686937,3798966,7485903,1017]
[1019,"JUD US SUP CT",27100,279996,280132,560128,1019]
[1031,"COA CTRMS/CHMBRS",2092614,33580575,31429388,65009962,1031]
[1032,"COA CLERK",563839,8321117,8318264,16639381,1032]
[1033,"CIR EXEC.",318863,4830331.38,4835064,9665396,1033]
[1035,"COA CLS",350874,5407499,5407603,10815102,1035]
[1037,"CIR LIBRARIES",816824,11774880,11729784,23504664,1037]
[1041,"DST JUD CTRMS/CHMBRS",14115989,205777735,178644083,384421818,1041]
[1042,"MAG JUD CTRMS/CHMBRS",3701886,53544324,50712832,104257156,1042]
[1044,"DST CLERK",5758440,81179053,74119727,155298780,1044]
[1046,"PROBATION",3846206,53402417,51932456,105334874,1046]
[1047,"PRETRIAL SVS",593538,9066731.2200000007,9103064,18169795,1047]
[1090,"JUD JUROR PARK",0,157866.48000000001,157866,315733,1090]
[1101,"EO OMB",214759,3499146,3498815,6997961,1101]
[1102,"EO CNCL ENVIRON QLTY",22130,367521,367509,735030,1102]
[1107,"EO CEA",19552,324934,324860,649794,1107]
[1111,"EO NSC",93729,1467692,1467237,2934928,1111]
[1113,"PEACE CORP",173000,4558022,4904194,9462216,1113]
[1116,"EO OFF VP",29047,487118,487019,974137,1116]
[1117,"EO WHITE HOUSE",191531,3095291,3094851,6190142,1117]
[1121,"EO OFF U.S. TRADE RE",119283,2161803,2207217,4369021,1121]
[1126,"EOP OFF ADMIN",128970,1663702,1663570,3327272,1126]
[1130,"EOP-ITOR",9107,143559.6,143548,287108,1130]
[1135,"EOP-ITOR/USDS",3305,54884,54884,109767,1135]
[1139,"EOP-NCSDO",7575,141078,144999,286076,1139]
[1141,"EO SCIENCE TECH POL",24783,419171,419078,838249,1141]
[1147,"EO NAT DRUG CTL PLCY",39156,1237338,1340790,2578129,1147]
[1148,"TDA",35994,940629,957624,1898253,1148]
[1201,"USDA FSA (STATE)",468334,5454458,5469554,10924012,1201]
[1202,"USDA NASS",164718,2972852,1868861,4841713,1202]
[1203,"USDA AMS",218542,3331739,3480105,6811843,1203]
[1205,"USDA ARS",144773,2237922,1710402,3948325,1205]
[1209,"USDA OCIO",5333,89177,86547,175724,1209]
[1210,"USDA -NIFA",63236,839133,888631,1727764,1210]
[1215,"USDA RHS",814697,7494766.4000000004,8104589,15599355,1215]
[1217,"USDA RMA",88905,1444003,1350950,2794953,1217]
[1221,"USDA FAS",2569,43549,43548,87097,1221]
[1222,"USDA DISC",49117,1687697,514114,2201811,1222]
[1223,"USDA FS",1528284,19253662,18870211,38123873,1223]
[1225,"USDA OGC",60178,895912,909119,1805031,1225]
[1230,"FNS",229822,3687515,3672857,7360372,1230]
[1234,"USDA APHIS",1831267,22491077,22315760,44806836,1234]
[1235,"USDA NRCS",1379735,16233230.57,15164420,31397650,1235]
[1237,"USDA FSIS",206999,2454821,1704491,4159312,1237]
[1247,"USDA OCFO",30353,198375,198631,397006,1247]
[1249,"USDA ERS",0,868349,0,868349,1249]
[1255,"USDA OIG",114213,2261099,1632715,3893814,1255]
[1256,"USDA NAD",9548,133934,135262,269196,1256]
[1260,"USDA -AQI",80646,1302750,1174821,2477571,1260]
[1262,"USDA NCR",2536050,5529497,37148187,42677684,1262]
[1265,"USDA-FPCBC",89227,2368750,1023779,3392529,1265]
[1289,"DEPT ADMIN",124537,618753,619546,1238298,1289]
[1293,"USDA FSA - COUNTY",261199,2402231,2320229,4722460,1293]
[1300,"COMMERCE DEPT",1381636,13974486,20642963,34617449,1300]
[1301,"CD SEC",36185,699582,700548,1400130,1301]
[1304,"CD CEN",1093932,5532652,5732640,11265292,1304]
[1305,"CD NTIA",32710,680197,504628,1184824,1305]
[1308,"CD NTIS",41674,402408,403265,805673,1308]
[1310,"CD PTO",2559842,43032044,46177673,89209716,1310]
[1312,"CD ITA",115362,1917899.7,1909157,3827057,1312]
[1313,"OIG",17669,287214,287214,574427,1313]
[1314,"CD NOAA",3372159,48767057,47926369,96693426,1314]
[1315,"BUREAU ECON ANALYSIS",148900,2024769,2024681,4049450,1315]
[1316,"CD BUR INDSTRY & SEC",79877,1608206,1492654,3100860,1316]
[1320,"CD EDA",35388,738147.48,579478,1317626,1320]
[1400,"INTERIOR DEPT",1051234,9517119,9516459,19033579,1400]
[1406,"ID SUR MIN REG ENF",110899,1621916,1165186,2787102,1406]
[1407,"ID GEOLOGICAL SURVEY",2684524,38961407,33377637,72339043,1407]
[1408,"ID OFF HEAR & APPL",20841,360414,315000,675414,1408]
[1409,"ID BUR INDIAN AFF",875904,9903409,9389333,19292742,1409]
[1410,"ID BU OF SAF ENV ENF",227208,6990095,3722660,10712756,1410]
[1411,"ID BUR LAND MGMT",1241190,19579073.449999999,16520985,36100058,1411]
[1412,"ID TF ADMINISTRATION",150363,1570310,1532016,3102325,1412]
[1417,"ID NATL PARK SRV",1731397,23766799,22817813,46584613,1417]
[1423,"ID BU OF RECLAMATION",704584,10137075,7028147,17165222,1423]
[1424,"DOI-IBC",268689,3995148,4278490,8273639,1424]
[1425,"ID OFF SECTY",54282,689098,652790,1341889,1425]
[1427,"ID OFF SOLICITOR",104937,1553053,1498940,3051993,1427]
[1433,"DOI/INSULAR AFFRS",2670,69102.320000000007,69359,138461,1433]
[1436,"ID FISH&WLF SRVC",1665626,22357313,22371757,44729069,1436]
[1441,"ID OFF IG",70189,878815,881281,1760096,1441]
[1443,"ID NAT INDIN GAM COM",42403,786836,865322,1652158,1443]
[1455,"APPRSI VALUA SVCS",33665,459747,363908,823656,1455]
[1460,"OF NTRL RESRCS & REV",106215,1309049,1011814,2320864,1460]
[1500,"JUSTICE DEPT",4115479,105129072,106700835,211829906,1500]
[1501,"JD US TRUSTEES",860193,11919356.27,11703110,23622466,1501]
[1503,"JD ANTITRST DIV",74611,2261440,2239712,4501152,1503]
[1507,"JD CIVIL DIV",26742,748655,748152,1496807,1507]
[1511,"JD CRIM DIV",16377,204984,204984,409968,1511]
[1513,"JD FBI",17338065,347661346,340063855,687725201,1513]
[1517,"JD ENV & NAT RES",7157,195947,195946,391893,1517]
[1519,"JD BUR PRISONS",778825,13227121,13459491,26686612,1519]
[1521,"JD TAX DIV",20653,282409,308298,590707,1521]
[1525,"JD US MARSHALS SRV",7805049,115289952.7,114040371,229330324,1525]
[1526,"JD EO IMM REV",2085929,34172548,35904147,70076695,1526]
[1528,"JD OFF JUSTICE PROG",251795,9811096,9922848,19733944,1528]
[1529,"JD COMNTY RLTNS SRVC",35718,634087,594827,1228914,1529]
[1532,"JD DRUG ENF",6166415,139487939,122340331,261828270,1532]
[1535,"JD OFF US ATTYS",8843575,134072735,133360884,267433619,1535]
[1539,"JD OFFICE OF IG",109486,1999730,2069170,4068900,1539]
[1545,"DOJ-ORG CRI ENF TF",49000,968905,985513,1954418,1545]
[1593,"BU ALC TOB FRMS XPL",2617640,53305844,44279236,97585080,1593]
[1600,"LABOR DEPT",1472721,21296201.510000002,21299283,42595484,1600]
[1602,"LD ASST SECTY ADMT",57163,1538864,1117858,2656722,1602]
[1603,"LD MINE SAFE HEALTH",607447,8651206,8010741,16661947,1603]
[1604,"LD OFF INSPECTOR GEN",95254,1527003,1534764,3061767,1604]
[1605,"EMPLOY BEN SEC ADM",179402,3659353,3328143,6987497,1605]
[1606,"LD PEN BEN GUAR CORP",431785,-61750,11382867,11321117,1606]
[1608,"LD -OLMS",49067,796789,743824,1540613,1608]
[1614,"LD OCC SFTY&HLTH ADM",592268,9588113,9159705,18747818,1614]
[1615,"LD BUR LAB STAT",462107,9899437.0199999996,8937005,18836442,1615]
[1616,"LD EMPLMNT TRNG ADM",96750,1651560,1651598,3303157,1616]
[1617,"LD OFF SECTY",491,6515.22,6514,13029,1617]
[1619,"LD OFF SOLICITOR",126298,2494876,2187104,4681980,1619]
[1620,"LD VETS - BAC 267",3542,41458,48874,90332,1620]
[1622,"LD REGIONAL REP",1056,29071.74,29363,58434,1622]
[1628,"LD OFF FIN MGMT SRV",695,3283.92,3284,6568,1628]
[1629,"LD ADMIN LAW JUDGES",42654,564350,708482,1272832,1629]
[1630,"LD OWCP",133605,2390520,1748290,4138809,1630]
[1631,"LD WHD",353564,4846966,4829261,9676227,1631]
[1632,"LD OFCCP",143075,2184019,2098891,4282910,1632]
[1633,"LD BAT",27225,329012.06,327958,656970,1633]
[1634,"LD OJC",43705,689979,710353,1400332,1634]
[1700,"NAVY DEPT",25670,474286,475052,949338,1700]
[1701,"USN SECTY NAVY",57929,1003968,918395,1922363,1701]
[1702,"USN ONR",6580,79287.899999999994,79288,158576,1702]
[1703,"USN CINCPAFLT",460,35506.379999999997,35506,71013,1703]
[1706,"USN CHNO",702655,8901352,9090964,17992317,1706]
[1707,"USN COMNAVSEASYSCOM",425251,1930152,1937254,3867406,1707]
[1710,"USN CHNAVPERS",10468,154390,154387,308776,1710]
[1712,"USN BUMED",83603,1633035,1670534,3303569,1712]
[1713,"USN COMNAVAIRPAC",116150,375716,1067738,1443454,1713]
[1715,"SPAWAR-SYSTEM",48187,712092,715062,1427155,1715]
[1719,"USN CNAVASYSCOM",344953,3618728,3405118,7023846,1719]
[1730,"USN COMDTMC",60094,898615,913968,1812583,1730]
[1738,"USMC MCCS",1279,18615,18615,37230,1738]
[1759,"HQTRS USMC",403688,4186046,4186202,8372248,1759]
[1761,"US MARINE CORPS",0,203093,0,203093,1761]
[1800,"US POST SRVC",1028582,10602256,9718513,20320769,1800]
[1900,"STATE DEPT",8129991,143290883,143582057,286872940,1900]
[2000,"TD",13711,262050,263968,526018,2000]
[2003,"TD OFF CMPT CRRNCY",2958,30606,30825,61431,2003]
[2009,"TD BUR ENGR PRINT",265000,2759755,2063463,4823218,2009]
[2011,"IRS",21988924,307993201.5,308407445,616400647,2011]
[2014,"US MINT-SAN FRAN",29075,396157,539452,935609,2014]
[2015,"A&T TAX TRADE BUR",106958,1860906.77,1793388,3654294,2015]
[2019,"TD OFF SECTY",1304967,14724012,15017586,29741598,2019]
[2021,"TD OFF TREAS US",142841,2493434,2496464,4989899,2021]
[2030,"TD OIG",33675,1137356,1144616,2281971,2030]
[2036,"BUR OF THE FIS SERV",1091965,13150610,12855927,26006536,2036]
[2038,"TIGTA",250934,3541265.16,4018197,7559462,2038]
[2065,"SIGPR",22408,471340,468518,939857,2065]
[2100,"USA DEPT",656085,4901154,6262656,11163810,2100]
[2102,"USA WASH DC",19413,335623,341714,677338,2102]
[2103,"OAA-ROC",239866,686572,686572,1373145,2103]
[2104,"USA AR",3400,161439.88,45731,207171,2104]
[2107,"USA REC MACH PROGRAM",1196,11174,11174,22348,2107]
[2114,"USA CRIM INVEST COM",72416,953238.72,943981,1897220,2114]
[2118,"USA NAT GUARD BUR",11765,107450,107450,214900,2118]
[2128,"ARMY DIST LRNG SYST",0,121739,0,121739,2128]
[2129,"USA MISC ARMY ACT",20194,248190,247229,495418,2129]
[2131,"USA HUM RESOU CMD",6453,55560,54814,110374,2131]
[2136,"USA MDA",92080,1418664,1295836,2714500,2136]
[2141,"USA AFR",828142,11690544,11318351,23008895,2141]
[2142,"USA MIL ENLIST PROC",1321403,20547737,20307750,40855487,2142]
[2145,"DFAS",23890,185790,186235,372026,2145]
[2146,"USA SIM TRNG & INSTM",4716,92826,92602,185429,2146]
[2147,"USA RESEARCH LAB",41793,621321,623830,1245151,2147]
[2153,"ARMY/ARMY NORTH",29700,549766,487661,1037427,2153]
[2155,"USP&FO FOR COLORADO",14443,153863,158152,312016,2155]
[2162,"DOD-ARMY FUTURES COM",58475,736481,736479,1472960,2162]
[2170,"DOD-AEM",17186,280254.12,280254,560508,2170]
[2300,"TAX CRT US",333434,5385932,5381109,10767041,2300]
[2400,"OFF PERS MGMT",1105527,12364449,12315746,24680195,2400]
[2700,"FCC",558875,14300201.119999999,14337285,28637486,2700]
[2804,"SSA",25326435,361531035,331828382,693359416,2804]
[2900,"FTC",577937,11589317,10911641,22500958,2900]
[3100,"NUCLEAR REG COMM",981016,14820701,14901525,29722225,3100]
[3300,"SMITHSONIAN INST",144750,66730,66730,133460,3300]
[3312,"SI JFK CNTR PRF ARTS",9992,67009,66548,133557,3312]
[3358,"SI WOODROW WILSON CT",116751,0,2944468,2944468,3358]
[3400,"INTER TRADE COMM",206035,5159162,5163389,10322551,3400]
[3600,"DEPT OF VETERANS AFF",324162,5196460,5045533,10241993,3600]
[3601,"VA OIG",201389,3831750,3943997,7775747,3601]
[3603,"VA PROCUREMENT & SUP",120181,1751172,2142126,3893298,3603]
[3607,"VA OIT",327614,3821713,4088925,7910639,3607]
[3609,"VA VHA",918311,14683962,12341522,27025484,3609]
[3610,"VA NCA",22199,342759,342994,685753,3610]
[3611,"VBA",3620516,56210648,48603739,104814386,3611]
[3614,"VA ADMIN SVC (VACO)",1520874,28167153,29127108,57294260,3614]
[3618,"VA GENERAL COUNSEL",29630,322994,366290,689285,3618]
[4100,"MSPB",90663,1951604,1902479,3854083,4100]
[4500,"EEOC",992150,16754334,16613578,33367912,4500]
[4701,"OFFICE OF ADMIN-OCA",4489,90340.23,81988,172329,4701]
[4704,"GSA OFF IG",102966,2172966,2159220,4332186,4704]
[4706,"OFF GVTWIDE PLCY",6041,155476,154864,310341,4706]
[4710,"REAL PRO DISP",20397,389554,378521,768076,4710]
[4712,"CIV BD CONTRACT APPL",45206,1191553,1316294,2507847,4712]
[4726,"GSA FORMER PRES",41287,1016485,1068787,2085272,4726]
[4732,"ADMIN AND REG ADMIN",4760,102398.29,89769,192168,4732]
[4737,"GSA WCF",292398,6062622,4835954,10898576,4737]
[4741,"18F",0,73561,0,73561,4741]
[4742,"FAS-OFFICE SPACE",602487,9256234.3599999994,8862204,18118438,4742]
[4756,"FAS REG5 FLT MGT FAC",4293,51963,45430,97393,4756]
[4761,"FAS REG1 FLT MGT FAC",1824,67174,25232,92405,4761]
[4763,"FAS REG2 FLT MGT FAC",2540,46574,51632,98206,4763]
[4765,"FAS REG3 FLT MGT FAC",10409,115352,115495,230847,4765]
[4768,"FAS REG04 FL MGT FAC",11135,132341,134621,266962,4768]
[4783,"FAS REG 09 MA. CON C",5400,67978,68132,136110,4783]
[4793,"FAS REG6 FLT MGT FAC",0,2884.92,0,2885,4793]
[4794,"FAS REG7 FLT MGT FAC",5662,81660.899999999994,81760,163421,4794]
[4795,"FAS REG8 FLT MGT FAC",3824,37759.65,37945,75704,4795]
[4796,"FAS REG9 FLT MGT FAC",4046,65800.56,65872,131673,4796]
[4798,"FAS RG10 FLT MGT FAC",3744,44052.46,47100,91152,4798]
[4810,"NUCLR WASTE REVW BD",7860,179164,179384,358549,4810]
[4813,"INTRAGN FOR HOMELESS",3952,92396,91533,183929,4813]
[4853,"MEDPAC",14217,376689,377106,753795,4853]
[4855,"THE SOUTHEAST CRE RC",0,22573,0,22573,4855]
[4880,"PUBLIC BUIL REFM BD",597,0,15058,15058,4880]
[4900,"NSF",717984,12943220,12940157,25883377,4900]
[4953,"US ARCTIC RES COMMI",3583,76907,77108,154015,4953]
[5000,"SEC",596940,16658677,15717433,32376111,5000]
[5400,"FED LAB REL AUT",53026,1306513,1363308,2669821,5400]
[5600,"EXEC OFF PRES",464354,3613928,3662401,7276329,5600]
[5700,"USAF DEPT",724981,5593175,5539746,11132921,5700]
[5704,"USAF DISTRICT WASH",27638,604315,567826,1172141,5704]
[5706,"USAF SPACE COMMAND",124915,2495802,2494304,4990106,5706]
[5714,"USAF ESC",56282,668199,670038,1338237,5714]
[5715,"USAF ATC (RECRUIT)",11077,136197,136364,272560,5715]
[5726,"USAF OFF SPEC INVEST",11760,205901.82,206359,412260,5726]
[5740,"USAF SAF ISSO",31154,311069,311069,622138,5740]
[5769,"US AIRFORCE-AFSPC",24000,328686,328686,657372,5769]
[5901,"NTL ENDOW HMNTS",59778,1591464,1436737,3028201,5901]
[5902,"NTL ENDOW ARTS",56352,1518745,1363137,2881882,5902]
[5904,"INSTITUTE MUSM SERV",27714,618823,665954,1284778,5904]
[6000,"RRB",390060,1404421,1408885,2813306,6000]
[6100,"CONS PROD SFTY COMM",214796,4259054,4435490,8694544,6100]
[6200,"U.S. OFF SPEC COUNSE",35765,809823,830245,1640068,6200]
[6300,"NLRB",638645,11982205,11667872,23650077,6300]
[6500,"FED MARITIME COMM",59629,389955,1259295,1649249,6500]
[6800,"EPA",5614744,111023226,111035774,222059001,6800]
[6904,"DOT IG",46410,840975,861498,1702473,6904]
[6905,"DOT FAA",2782224,64940601.68,59317948,124258549,6905]
[6907,"DOT FED HWY ADM",659413,8327757,9494239,17821996,6907]
[6909,"DOT FED RR ADM",33870,527695,675930,1203625,6909]
[6910,"DOT MARITIME ADM",18936,309996,310607,620603,6910]
[6912,"DOT HWY TRFC SFT ADM",108842,1263568,1359818,2623386,6912]
[6915,"DOT FED TRANSIT ADM",100531,2105109,2118350,4223459,6915]
[6918,"DOT MOT CAR SFTY ADM",372562,5472916,5494064,10966980,6918]
[6920,"DOT OFF OF SEC WCF",1514131,28268435,28269003,56537437,6920]
[6949,"DOT TRANS SYS CENT",298709,755928,1511855,2267783,6949]
[6957,"DOT PIPELINE & HAZ",68337,969632,925966,1895598,6957]
[7001,"DHS USSS",2894596,54312530,56909364,111221894,7001]
[7002,"DHS US COAST GUARD",2100660,27787562,26714456,54502018,7002]
[7004,"U.S CITIZENSHIP/IMMI",7548634,128077391,128235106,256312497,7004]
[7006,"DHS OFFC OF THE IG",279747,5296434,5633657,10930092,7006]
[7010,"DHS UNDERSEC FOR MGM",2594618,40986663,30879557,71866220,7010]
[7021,"DHS -CISA",31324,707574,589453,1297026,7021]
[7032,"DHS NA UR SEC TC LAB",39649,1219799,1219797,2439596,7032]
[7041,"FEMA/PREPAREDNESS",3605938,42243379,39352650,81596029,7041]
[7050,"DHS-OBIM",11426,276563,277495,554059,7050]
[7054,"DHS TSA",2960233,77423034,78333041,155756075,7054]
[7055,"U.S IMMIGR/CUST/ENFO",8781347,177921680,173684720,351606400,7055]
[7056,"FPS-DHS-MGMT",748606,11828359.5,11206934,23035294,7056]
[7071,"FIELD OPERATIONS FAC",9210455,207320318,196005397,403325715,7071]
[7072,"BORDER PATROL F",1359664,28423940,27053809,55477748,7072]
[7073,"MISSION SUPP FACIL",2505329,65658328,51712197,117370525,7073]
[7074,"AIR AND MARINE FACIL",107436,2013085,2012302,4025387,7074]
[7200,"AID",429101,29541424,12231533,41772957,7200]
[7300,"SBA",1374636,22606330,19703574,42309905,7300]
[7301,"SBA",17350,213551,213845,427396,7301]
[7400,"AM BATTLE MNTS COMM",19998,487351,487704,975055,7400]
[7500,"HHS DEPT",1056178,14046461,13779984,27826445,7500]
[7501,"HHS OFF SECTY",1240314,32369143,19833573,52202716,7501]
[7503,"HHS HRSA",74418,1483757,1429161,2912917,7503]
[7505,"CMS",1554318,12539680,13937673,26477352,7505]
[7506,"HHS FDA",6635711,111182457,101869922,213052380,7506]
[7508,"HHS NIH",2398160,40240701.619999997,39279269,79519970,7508]
[7509,"HHS CDC",704134,10228719.449999999,9495499,19724219,7509]
[7510,"HHS IHS",7039,162700.81,183278,345979,7510]
[7511,"HHS PSC",1158471,19018652,18209463,37228115,7511]
[7513,"HHS SAMHSA",314,10031.950000000001,11229,21261,7513]
[7517,"HHS ACF",89458,1595597,1633975,3229572,7517]
[7519,"HHS AD FOR COM LIVIN",5010,99789,99792,199580,7519]
[7520,"HHS DM (IG)",395131,6365243,6360176,12725419,7520]
[7526,"HHS IHS- NAVAJO",105887,1047462,1069414,2116876,7526]
[7527,"HHS IHS-ALBUQUERQUE",33199,437344,438132,875476,7527]
[7528,"HHS IHS-OKLAHOMA",58809,706045.62,701411,1407457,7528]
[7529,"HHS IHS-NASHVILLE",45638,398295,399527,797822,7529]
[7530,"HHS IHS-ABERDEEN",72604,539039,539077,1078116,7530]
[7531,"HHS IHS-BILLINGS",27227,319784,327644,647428,7531]
[7532,"HHS IHS-PORTLAND",28014,584963,559758,1144721,7532]
[7533,"HHS IHS-PHOENIX",77245,1622268,1520856,3143124,7533]
[7534,"HHS IHS-CALIFORNIA",29081,430346,431440,861786,7534]
[7535,"HHS IHS-TUCSON",1230,19656,19679,39335,7535]
[7537,"HHS IHS-BEMIDJI",31067,460226,455750,915977,7537]
[7560,"HHS NCI",676168,12152538,12741487,24894025,7560]
[8000,"NASA",612086,17634491,17712121,35346613,8000]
[8001,"NASA HDQTS",6107,84746,84746,169492,8001]
[8004,"NASA GODD SP FL CTR",43387,1579031,1580384,3159414,8004]
[8300,"EXP/IMP BANK US",175061,3905355,3905356,7810711,8300]
[8600,"HUD DEPT",265711,5991074,4551341,10542415,8600]
[8601,"HUD OFF SECTY",1612588,37420452,25707379,63127831,8601]
[8612,"HUD FLD OFF",27566,636170,642275,1278445,8612]
[8800,"NARA",2610017,14874908,14390435,29265343,8800]
[8802,"WASH NAT REC CTR",850944,4922724,4922711,9845435,8802]
[8803,"NARA NAT ARCH CTRS",2295397,8411191,9043873,17455064,8803]
[8900,"DOE",50734,352350,352762,705112,8900]
[8901,"DOE RICHLAND OP OFF",486758,5454756.8099999996,5507610,10962367,8901]
[8902,"DOE FERC",586200,16332157,16452744,32784901,8902]
[8905,"NNSA SERVICE CENTER",4781,90226,90240,180466,8905]
[8906,"OFFICE OF MANAGEMENT",2213968,20221861,21196505,41418366,8906]
[8910,"DOE SAVANNAH RIV OPE",2250,22590,22726,45316,8910]
[8912,"DOE WAPA",178171,1832291,1868109,3700400,8912]
[8914,"DOE BPA",495257,5615494,5615502,11230995,8914]
[8916,"DOE SWPA",19085,168530,179964,348494,8916]
[8918,"DOE OAK RIDGE OPER",137725,612874,612874,1225749,8918]
[8919,"KANSAS CITY",1509950,32315175,32334729,64649904,8919]
[8920,"DOE-GOLDEN CO FIELD",1098,6843,10265,17108,8920]
[8924,"DOE/LEGACY MAGE'MENT",58990,1074227,1084323,2158550,8924]
[8926,"DOE-COUNTER INTELLIG",23799,226089,226089,452179,8926]
[8941,"DOE-CARLSBAD OFFICE",90850,424625,429817,854442,8941]
[8943,"DEPT. OF ENGY-EMCBC",0,600320,0,600320,8943]
[9000,"SSS",0,206135,0,206135,9000]
[9100,"DEPT OF EDUC",1219279,27397712,23595980,50993693,9100]
[9300,"FED MED & CONCIL SRV",61656,1338904,1286282,2625185,9300]
[9502,"NTL CAP PLAN COMM",24053,418426,565295,983720,9502]
[9504,"MIN SAF COM",45707,932166,962643,1894809,9504]
[9506,"FEDERAL ELECT COMM",99677,2610684,2679893,5290577,9506]
[9507,"CMDTY FUTS TRAD COMM",79939,2011094,1966474,3977568,9507]
[9508,"NATL TRNS SFTY BD",196076,5065145,6197616,11262761,9508]
[9510,"HARRY S TRUMAN FD",2205,45546.78,45547,91094,9510]
[9512,"US JAPAN FRSHIP COMM",2149,55282,57636,112919,9512]
[9513,"MARINE MAMM COMM",5918,35853,107667,143519,9513]
[9514,"OCC/HLTH REV COMM",35193,156875,130407,287282,9514]
[9515,"ADM CONF US",7289,199031,205706,404737,9515]
[9517,"COMM ON CIV RIGHTS",30499,541700,684095,1225795,9517]
[9518,"COMM FR BLIND-HNDCP",7433,157754,183665,341419,9518]
[9520,"COMM ON FINE ARTS",9334,177434,177434,354869,9520]
[9522,"ACCESS BOARD",13825,357539,362936,720475,9522]
[9524,"NTL MED BD",23425,640264,641424,1281687,9524]
[9527,"HOLOCAUST MEM CNCL",36678,978575.62,1026633,2005209,9527]
[9529,"NAT COUNCL DISABILIT",5069,132925,133121,266045,9529]
[9537,"PRESV AMER HRTG ABRD",2454,50362,50328,100690,9537]
[9538,"DEF NCLR FAC SFTY BD",60133,1543060,1565720,3108780,9538]
[9539,"USCAVC",61684,1578629,1609526,3188154,9539]
[9542,"OFFICE GOVT ETHICS",6581,526699,150628,677327,9542]
[9545,"COM NAT & COM SERV",87024,2132689,2125791,4258479,9545]
[9551,"DNI",320385,4411182,4645826,9057007,9551]
[9559,"CONS FINAN PRO",30257,1646262,987457,2633719,9559]
[9562,"ELECTION ASSIST COMM",16070,358592,358595,717186,9562]
[9563,"CSOSA/OFM",208254,6072198,6172693,12244891,9563]
[9564,"PDS",65408,1835500,1836572,3672071,9564]
[9568,"U.S. AGNY FOR GL MED",72849,12942347,1354988,14297336,9568]
[9570,"PRETRIAL SERV AGENCY",50868,1623230,1298347,2921576,9570]
[9580,"FED. HOU. FIN AG-OIG",17607,228588,228337,456925,9580]
[9582,"PCLOB",18400,487239,496856,984096,9582]
[9583,"COUNCIL OF INSP. GIE",11858,-38495,27514,-10981,9583]
[9584,"NORT'RN BORD REG COM",1688,19434,19434,38868,9584]
[9588,"GULF COAST ECOS RES",2460,22724,22724,45448,9588]
[9589,"SURFACE TRANS BOARD",63825,1575795,1609656,3185452,9589]
[9600,"CORPS ENGR CVL APPND",4346088,64399643,59179925,123579568,9600]
[9700,"DOD",2265,52261,54489,106749,9700]
[9708,"DOD-DOHA",3583,71889,72409,144297,9708]
[9709,"DOD TRICARE (BAG 4)",85844,1429080,1436451,2865532,9709]
[9712,"DOD IG",228370,3769207,3519602,7288809,9712]
[9713,"DOD DEA",52891,749176,752491,1501667,9713]
[9714,"DTRA",3755,60663,60775,121438,9714]
[9715,"DOD DLA",1173247,4857775,4858962,9716737,9715]
[9716,"NGA",10573,182471,182764,365235,9716]
[9717,"DOD DIA",39701,592844,602257,1195102,9717]
[9718,"DOD DCSA",42949,590025,582226,1172250,9718]
[9721,"DOD DISA",40462,611938.92000000004,617696,1229635,9721]
[9722,"DOD DCAA",420874,6509189.4100000001,6182374,12691564,9722]
[9723,"DOD DEF CONT MGT AGY",587346,7693498,7286086,14979584,9723]
[9724,"DEF CONT MANA AGNEY",57308,853996,766173,1620170,9724]
[9727,"DFAS-IN",680649,6216442,6216420,12432862,9727]
[9732,"DOD JTO",5624,52564,31903,84467,9732]
[9743,"DOD TRICARE (BAG 7)",101285,1273561,1315211,2588771,9743]
[9744,"DOD-DHA- MTF CLI",11410,267382,268895,536277,9744]
[9747,"DEFENSE HEALTH AG'CY",132770,1827355,1769598,3596953,9747]
[9750,"DOD- TECH SER BRANCH",24802,664891,702630,1367521,9750]
[9751,"DCSA-DOD WORKING CAP",306002,3110860,2974314,6085173,9751]
[9752,"DOD/USSOCOM",0,4838,0,4838,9752]
[9753,"USTRANSCOM",25556,204707,204655,409362,9753]
[9761,"DEFENSE ACQUI. UNIVE",49490,1135364,762819,1898183,9761]
[9766,"DFAS-OH",417665,3227793,3227869,6455663,9766]
[9771,"DOD DEFENSE MICR ACT",71446,1215732,1265376,2481108,9771]
[9799,"DOD WHS",5540547,107591704,106208985,213800689,9799]